Workbook

Sheet Filtro
A1: Mes | B1: (Todas)
A2: Establecimiento | B2: (Todas)
A3: Comuna/ Hospital | B3: (Todas)
A5: Etiquetas de fila | B5: Suma de Col01 | C5: Suma de Col02 | D5: Suma de Col03 | E5: Suma de Col04 | F5: Suma de Col05 | G5: Suma de Col06 | H5: Suma de Col07 | I5: Suma de Col08
A6: 18010100 | B6: 79169 | C6: 0 | D6: 79169
A7: 18010200 | B7: 272398 | C7: 0 | D7: 272398
A8: 18010500 | B8: 3017 | C8: 0 | D8: 3017
A9: 18010601 | B9: 19366 | C9: 0 | D9: 19366
A10: 18010800 | B10: 2353 | C10: 0 | D10: 2353
A11: 18010900 | B11: 100999 | C11: 1540 | D11: 99459
A12: 18011001 | B12: 42128 | C12: 37950 | D12: 4178
A13: 18011002 | B13: 1361 | C13: 59 | D13: 1302
A14: 18020200 | B14: 179 | C14: 123 | D14: 56
A15: 18020300 | B15: 18297 | C15: 14773 | D15: 3524
A16: 18020400 | B16: 826 | C16: 0 | D16: 826
A17: 18020500 | B17: 128107 | C17: 27405 | D17: 100702
A18: 18020600 | B18: 168 | C18: 136 | D18: 32
A19: 18020700 | B19: 1408 | C19: 1008 | D19: 400
A20: 18020800 | B20: 1755 | C20: 1752 | D20: 3
A21: 18020900 | B21: 1037 | C21: 0 | D21: 1037
A22: 18030000 | B22: 5887 | C22: 3456 | D22: 2431
A23: 18040100 | B23: 3427 | C23: 471 | D23: 2956
A24: 18040200 | B24: 2312 | C24: 138 | D24: 2182
A25: 18050100 | B25: 88980 | C25: 12801 | D25: 76211
A26: 18050200 | B26: 3365 | C26: 1409 | D26: 1956
A27: 18050300 | B27: 1036 | C27: 183 | D27: 853
A28: 18050400 | B28: 6972 | C28: 450 | D28: 6522
A29: 18050500 | B29: 48274 | C29: 1656 | D29: 46618
A30: 18070100 | B30: 457 | C30: 10 | D30: 271 | E30: 94 | F30: 25 | G30: 5 | H30: 52
A31: 18070300 | B31: 1734 | C31: 413 | D31: 587 | E31: 82 | F31: 64 | G31: 325 | H31: 263
A32: 18090000 | B32: 29107 | C32: 865 | D32: 28238
A33: 18090100 | B33: 53036 | C33: 0 | D33: 53036
A34: 18090200 | B34: 8707 | C34: 1805
A35: 18090300 | B35: 20
A36: 18400400 | B36: 251 | C36: 176 | D36: 75
A37: 18400500 | B37: 324 | C37: 0 | D37: 324
A38: 18400700 | B38: 1086992
A39: 18400900 | B39: 13906 | C39: 2641 | D39: 11265
A40: 18700100 | B40: 11206 | C40: 3403 | D40: 6139 | E40: 1664 | F40: 0
A41: 18700110 | B41: 122 | C41: 23 | D41: 66 | E41: 33 | F41: 115 | G41: 7 | H41: 115
A42: 18700140 | B42: 42 | D42: 42 | F42: 29 | G42: 16 | H42: 26
A43: 18700170 | B43: 2 | D43: 2 | F43: 2 | H43: 2
A44: 18700190 | B44: 22 | C44: 0 | D44: 22 | E44: 0 | F44: 22 | G44: 5 | H44: 17
A45: 18700230 | B45: 2377 | C45: 370 | D45: 1777 | E45: 230 | F45: 1391 | G45: 395 | H45: 1376
A46: 18700240 | B46: 16 | D46: 16
A47: 18700250 | B47: 646 | D47: 646
A48: 18700260 | B48: 68 | D48: 68
A49: 18700270 | B49: 1264 | D49: 1264
A50: 18700280 | B50: 193 | D50: 193
A51: 18700290 | B51: 327 | D51: 327
A52: 18700300 | B52: 124 | D52: 124
A53: 18700310 | B53: 457 | D53: 457
A54: 18700330 | B54: 321 | D54: 321
A55: 18700340 | B55: 175 | D55: 175
A56: 18700350 | B56: 377 | D56: 377
A57: 80106002 | B57: 89117 | C57: 12906 | D57: 76211 | E57: 370 | F57: 82111 | G57: 2
A58: 80106005 | B58: 3365 | C58: 1409 | D58: 1956 | E58: 49 | F58: 3294
A59: 80106006 | B59: 1040 | C59: 187 | D59: 853 | E59: 2 | F59: 885 | G59: 0
A60: 80106007 | B60: 803 | C60: 435 | D60: 368 | E60: 99 | F60: 631 | G60: 0
A61: 80106008 | B61: 472 | C61: 153 | D61: 319 | E61: 52 | F61: 302 | G61: 0
A62: 80106009 | B62: 32 | C62: 18 | D62: 14 | E62: 2 | F62: 30 | G62: 0
A63: 80106010 | B63: 911 | C63: 55 | D63: 856 | E63: 343 | F63: 373 | G63: 0
A64: 80106011 | B64: 51 | C64: 41 | D64: 10 | E64: 6 | F64: 46 | G64: 0
A65: 80106012 | B65: 812 | C65: 605 | D65: 207 | E65: 575 | F65: 247 | G65: 0
A66: 80106013 | B66: 6026 | C66: 3114 | D66: 2912 | E66: 181 | F66: 4638 | G66: 0
A67: 80106014 | B67: 324183 | C67: 181343 | D67: 142855 | E67: 3923 | F67: 307046 | G67: 36
A68: 80106015 | B68: 60551 | C68: 51355 | D68: 9196 | E68: 408 | F68: 57401 | G68: 2
A69: 80106017 | B69: 48291 | C69: 1673 | D69: 46618 | E69: 572 | F69: 45696 | G69: 3
A70: 80106020 | B70: 4293 | C70: 3464 | D70: 829 | E70: 58 | F70: 4053 | G70: 0
A71: 80106021 | B71: 320 | C71: 98 | D71: 222 | E71: 17 | F71: 294 | G71: 0
A72: 80106022 | B72: 2856 | C72: 1088 | D72: 1768 | E72: 48 | F72: 2572 | G72: 0
A73: 80106023 | B73: 29103 | C73: 865 | D73: 28238 | E73: 48 | F73: 27070 | G73: 1694
A74: 80106024 | B74: 6974 | C74: 452 | D74: 6522 | E74: 0 | F74: 6847 | G74: 0
A75: 80301002 | B75: 0 | E75: 25
A76: 80301011 | B76: 0 | E76: 227
A77: 80301014 | B77: 0 | E77: 122
A78: 80301015 | B78: 2 | C78: 0 | D78: 2 | E78: 1474
A79: 80301026 | B79: 0 | E79: 1768
A80: 80301028 | B80: 0 | E80: 2
A81: 80301030 | B81: 0 | E81: 1
A82: 80301034 | B82: 1221 | D82: 1221 | E82: 2515
A83: 80301035 | B83: 0 | E83: 151
A84: 80301036 | B84: 2660 | C84: 0 | D84: 2660 | E84: 38642
A85: 80301038 | B85: 1447 | C85: 0 | D85: 1447 | E85: 35779
A86: 80301039 | B86: 0 | E86: 145
A87: 80301040 | B87: 0 | E87: 9
A88: 80301041 | B88: 22862 | C88: 0 | D88: 22862 | E88: 52772
A89: 80301042 | B89: 0 | E89: 267
A90: 80301043 | B90: 0 | E90: 29
A91: 80301044 | B91: 0 | E91: 18
A92: 80301045 | B92: 37243 | C92: 0 | D92: 37243 | E92: 67752
A93: 80301058 | B93: 0 | E93: 63
A94: 80301059 | B94: 2558 | C94: 0 | D94: 2558 | E94: 3446
A95: 80301065 | B95: 25 | D95: 25 | E95: 26
A96: 80301067 | B96: 196 | D96: 196 | E96: 42
A97: 80301068 | B97: 0 | E97: 9
A98: 80301072 | B98: 31 | D98: 31
A99: 80301075 | B99: 0 | C99: 0 | E99: 137
A100: 80301077 | B100: 0 | E100: 5
A101: 80301078 | B101: 0 | E101: 18
A102: 80301083 | B102: 0 | E102: 274
A103: 80301085 | B103: 914 | D103: 914 | E103: 1914
A104: 80301086 | B104: 9960 | D104: 9960 | E104: 2161
A105: 80301087 | B105: 50 | C105: 0 | D105: 50 | E105: 2632
A106: 80302004 | B106: 0 | E106: 104
A107: 80302005 | B107: 23980 | C107: 0 | D107: 23980 | E107: 42283
A108: 80302008 | B108: 0 | E108: 84
A109: 80302012 | B109: 183 | D109: 183 | E109: 745
A110: 80302013 | B110: 771 | C110: 0 | D110: 771 | E110: 7607
A111: 80302015 | B111: 39 | D111: 39 | E111: 1917
A112: 80302016 | B112: 0 | E112: 2
A113: 80302019 | B113: 0 | E113: 20
A114: 80302020 | B114: 68 | D114: 68 | E114: 1
A115: 80302021 | B115: 0 | E115: 581
A116: 80302022 | B116: 292 | D116: 292 | E116: 2046
A117: 80302023 | B117: 35599 | C117: 0 | D117: 35599 | E117: 93832
A118: 80302024 | B118: 172 | D118: 172 | E118: 252
A119: 80302025 | B119: 0 | E119: 15
A120: 80302026 | B120: 1 | D120: 1 | E120: 416
A121: 80302028 | B121: 32 | D121: 32 | E121: 1
A122: 80302030 | B122: 26 | D122: 26 | E122: 527
A123: 80302031 | B123: 0 | E123: 269
A124: 80302032 | B124: 64723 | C124: 0 | D124: 64723 | E124: 79317
A125: 80302033 | B125: 0 | E125: 1270
A126: 80302034 | B126: 42144 | D126: 42144 | E126: 65991
A127: 80302035 | B127: 0 | E127: 152
A128: 80302039 | B128: 0 | E128: 4
A129: 80302040 | B129: 350 | C129: 0 | D129: 350 | E129: 6761
A130: 80302042 | B130: 30 | D130: 30 | E130: 442
A131: 80302045 | B131: 243 | D131: 243 | E131: 917
A132: 80302047 | B132: 48753 | C132: 0 | D132: 48753 | E132: 122358
A133: 80302048 | B133: 4200 | C133: 0 | D133: 4200 | E133: 8909
A134: 80302050 | B134: 0 | E134: 19
A135: 80302051 | B135: 0 | E135: 27
A136: 80302053 | B136: 0 | E136: 5
A137: 80302054 | B137: 0 | E137: 7
A138: 80302056 | B138: 0 | E138: 3
A139: 80302057 | B139: 22034 | D139: 22034 | E139: 40547
A140: 80302058 | B140: 0 | E140: 1
A141: 80302059 | B141: 812 | D141: 812 | E141: 66
A142: 80302060 | B142: 908 | C142: 0 | D142: 908 | E142: 2895
A143: 80302062 | B143: 0 | E143: 184
A144: 80302063 | B144: 650 | C144: 0 | D144: 650 | E144: 17225
A145: 80302064 | B145: 1666 | C145: 0 | D145: 1666 | E145: 53308
A146: 80302065 | B146: 0 | E146: 374
A147: 80302067 | B147: 3328 | C147: 0 | D147: 3328 | E147: 58781
A148: 80302068 | B148: 819 | C148: 0 | D148: 819 | E148: 51289
A149: 80302069 | B149: 0 | E149: 2525
A150: 80302075 | B150: 35 | C150: 0 | D150: 35 | E150: 1114
A151: 80302076 | B151: 20540 | D151: 20540 | E151: 22483
A152: 80303015 | B152: 11 | D152: 11 | E152: 186
A153: 80303024 | B153: 30511 | C153: 0 | D153: 30511 | E153: 79879
A154: 80303025 | B154: 0 | E154: 39
A155: 80303026 | B155: 21760 | C155: 0 | D155: 21760 | E155: 29426
A156: 80303027 | B156: 460 | D156: 460 | E156: 113
A157: 80303028 | B157: 294 | D157: 294 | E157: 47
A158: 80305004 | B158: 0 | E158: 3
A159: 80305005 | B159: 0 | E159: 217
A160: 80305007 | B160: 0 | E160: 1
A161: 80305010 | B161: 0 | E161: 9
A162: 80305012 | B162: 0 | E162: 5
A163: 80305019 | B163: 1254 | C163: 0 | D163: 1254 | E163: 2877
A164: 80305020 | B164: 19 | D164: 19 | E164: 222
A165: 80305027 | B165: 0 | E165: 4
A166: 80305030 | B166: 2 | D166: 2 | E166: 671
A167: 80305040 | B167: 0 | E167: 2
A168: 80305042 | B168: 0 | E168: 3
A169: 80305045 | B169: 0 | E169: 1
A170: 80305047 | B170: 0 | E170: 240
A171: 80305070 | B171: 1742 | D171: 1742 | E171: 6181
A172: 80305170 | B172: 0 | E172: 21
A173: 80306001 | B173: 13 | C173: 0 | D173: 13 | E173: 139
A174: 80306002 | B174: 5 | D174: 5 | E174: 1553
A175: 80306004 | B175: 14 | D175: 14 | E175: 1
A176: 80306005 | B176: 276 | D176: 276 | E176: 13
A177: 80306007 | B177: 258 | D177: 258 | E177: 208
A178: 80306008 | B178: 222 | D178: 222 | E178: 332
A179: 80306011 | B179: 9386 | D179: 9386 | E179: 17542
A180: 80306012 | B180: 0 | E180: 1
A181: 80306018 | B181: 1 | D181: 1 | E181: 164
A182: 80306022 | B182: 0 | E182: 24
A183: 80306023 | B183: 0 | E183: 1
A184: 80306026 | B184: 1464 | D184: 1464 | E184: 3
A185: 80306038 | B185: 5757 | D185: 5757 | E185: 4514
A186: 80306041 | B186: 2 | D186: 2 | E186: 35
A187: 80306042 | B187: 402 | C187: 0 | D187: 402 | E187: 16592
A188: 80306045 | B188: 0 | E188: 3
A189: 80306047 | B189: 0 | E189: 6
A190: 80306048 | B190: 469 | D190: 469 | E190: 1019
A191: 80306051 | B191: 150 | D191: 150 | E191: 321
A192: 80306052 | B192: 1 | D192: 1 | E192: 72
A193: 80306057 | B193: 0 | E193: 8
A194: 80306059 | B194: 69 | D194: 69 | E194: 167
A195: 80306061 | B195: 800 | C195: 0 | D195: 800 | E195: 4548
A196: 80306064 | B196: 0 | E196: 26
A197: 80306066 | B197: 7 | D197: 7 | E197: 15
A198: 80306070 | B198: 0 | E198: 62
A199: 80306074 | B199: 5 | D199: 5 | E199: 32
A200: 80306075 | B200: 0 | E200: 446
A201: 80306076 | B201: 0 | E201: 52
... 150 more rows

Sheet BM18
B1: SERVICIO DE SALUD
B2: =CONCATENATE("COMUNA: ",[1]NOMBRE!B2," ","( ",[1]NOMBRE!C2,[1]NOMBRE!D2,[1]NOMBRE!E2,[1]NOMBRE!F2,[1]NOMBRE!G2," )") -> COMUNA: ( )
B3: =CONCATENATE("ESTABLECIMIENTO/ESTRATEGIA: ",[1]NOMBRE!B3," ","( ",[1]NOMBRE!C3,[1]NOMBRE!D3,[1]NOMBRE!E3,[1]NOMBRE!F3,[1]NOMBRE!G3,[1]NOMBRE!H3," )") -> ESTABLECIMIENTO/ESTRATEGIA: ( )
B4: =CONCATENATE("MES: ",[1]NOMBRE!B6," ","( ",[1]NOMBRE!C6,[1]NOMBRE!D6," )") -> MES: ( )
B5: =CONCATENATE("AÑO: ",[1]NOMBRE!B7) -> AÑO: 2023
B8: REM-B18. ACTIVIDADES DE APOYO DIAGNOSTICO Y TERAPEUTICO (USO EXCLUSIVO DE ESTABLECIMIENTOS MUNICIPALES)
B10: SECCIÓN A: EXÁMENES DE DIAGNOSTICO
B11: EXÁMENES | E11: TOTAL | F11: SAPU/SAR/SUR | G11: Resto Establecimientos APS
F12: Total | G12: Total
B13: TOTAL EXÁMENES LABORATORIO | E13: =SUM(F13:G13) -> 530,338 | F13: =SUM(F14:F16,F18:F19,F24:F25) -> 1,540 | G13: =SUM(G14:G16,G18:G19,G24:G25) -> 528,798 | H13: Linea
A14: 18010100 | B14: I | C14: HEMATOLÓGICOS | E14: =IFERROR(VLOOKUP('BM18'!$A14,Filtro!$A$5:$I$351,2,FALSE),0) -> 79,169 | F14: =IFERROR(VLOOKUP('BM18'!$A14,Filtro!$A$5:$I$351,3,FALSE),0) -> 0 | G14: =IFERROR(VLOOKUP('BM18'!$A14,Filtro!$A$5:$I$351,4,FALSE),0) -> 79,169 | H14: 14
A15: 18010200 | B15: II | C15: BIOQUÍMICOS | E15: =IFERROR(VLOOKUP('BM18'!$A15,Filtro!$A$5:$I$351,2,FALSE),0) -> 272,398 | F15: =IFERROR(VLOOKUP('BM18'!$A15,Filtro!$A$5:$I$351,3,FALSE),0) -> 0 | G15: =IFERROR(VLOOKUP('BM18'!$A15,Filtro!$A$5:$I$351,4,FALSE),0) -> 272,398 | H15: 15
A16: 18090100 | B16: III | C16: HORMONALES | E16: =IFERROR(VLOOKUP('BM18'!$A16,Filtro!$A$5:$I$351,2,FALSE),0) -> 53,036 | F16: =IFERROR(VLOOKUP('BM18'!$A16,Filtro!$A$5:$I$351,3,FALSE),0) -> 0 | G16: =IFERROR(VLOOKUP('BM18'!$A16,Filtro!$A$5:$I$351,4,FALSE),0) -> 53,036 | H16: 16
B17: IV | C17: GENÉTICA | H17: 17
A18: 18010500 | B18: V | C18: INMUNOLÓGICOS | E18: =IFERROR(VLOOKUP('BM18'!$A18,Filtro!$A$5:$I$351,2,FALSE),0) -> 3,017 | F18: =IFERROR(VLOOKUP('BM18'!$A18,Filtro!$A$5:$I$351,3,FALSE),0) -> 0 | G18: =IFERROR(VLOOKUP('BM18'!$A18,Filtro!$A$5:$I$351,4,FALSE),0) -> 3,017 | H18: 18
A19: 18010601 | B19: VI | C19: MICROBIOLÓGICOS | E19: =IFERROR(VLOOKUP('BM18'!$A19,Filtro!$A$5:$I$351,2,FALSE),0) -> 19,366 | F19: =IFERROR(VLOOKUP('BM18'!$A19,Filtro!$A$5:$I$351,3,FALSE),0) -> 0 | G19: =IFERROR(VLOOKUP('BM18'!$A19,Filtro!$A$5:$I$351,4,FALSE),0) -> 19,366 | H19: 19
C20: a) BACTERIAS Y HONGOS | H20: 20
C21: b) PARÁSITOS | H21: 21
C22: c) VIRUS | H22: 22
B23: VII | C23: PROCEDIMIENTO O DETERMINACIÓN DIRECTA C/PACIENTE | H23: 23
A24: 18010800 | B24: VIII | C24: EX. DE DEPOSICIONES EXUDADOS. SECREC. Y OTROS LIQ. | E24: =IFERROR(VLOOKUP('BM18'!$A24,Filtro!$A$5:$I$351,2,FALSE),0) -> 2,353 | F24: =IFERROR(VLOOKUP('BM18'!$A24,Filtro!$A$5:$I$351,3,FALSE),0) -> 0 | G24: =IFERROR(VLOOKUP('BM18'!$A24,Filtro!$A$5:$I$351,4,FALSE),0) -> 2,353 | H24: 24
A25: 18010900 | B25: IX | C25: ORINA | E25: =IFERROR(VLOOKUP('BM18'!$A25,Filtro!$A$5:$I$351,2,FALSE),0) -> 100,999 | F25: =IFERROR(VLOOKUP('BM18'!$A25,Filtro!$A$5:$I$351,3,FALSE),0) -> 1,540 | G25: =IFERROR(VLOOKUP('BM18'!$A25,Filtro!$A$5:$I$351,4,FALSE),0) -> 99,459 | H25: 25
B26: TOTAL EXÁMENES IMAGENOLOGIA | E26: =SUM(F26:G26) -> 43,489 | F26: =SUM(F27+F28+F44) -> 38,009 | G26: =SUM(G27+G28) -> 5,480 | H26: 26
A27: 18011001 | B27: a) | C27: EX. RADIOLÓGICOS SIMPLES | E27: =IFERROR(VLOOKUP('BM18'!$A27,Filtro!$A$5:$I$351,2,FALSE),0) -> 42,128 | F27: =IFERROR(VLOOKUP('BM18'!$A27,Filtro!$A$5:$I$351,3,FALSE),0) -> 37,950 | G27: =IFERROR(VLOOKUP('BM18'!$A27,Filtro!$A$5:$I$351,4,FALSE),0) -> 4,178 | H27: 27
A28: 18011002 | C28: Ecotomografías | E28: =IFERROR(VLOOKUP('BM18'!$A28,Filtro!$A$5:$I$351,2,FALSE),0) -> 1,361 | F28: =IFERROR(VLOOKUP('BM18'!$A28,Filtro!$A$5:$I$351,3,FALSE),0) -> 59 | G28: =IFERROR(VLOOKUP('BM18'!$A28,Filtro!$A$5:$I$351,4,FALSE),0) -> 1,302 | H28: 28
A29: 18400500 | C29: Ecotomografías abdominal | E29: =SUM(F29:G29) -> 324 | F29: =IFERROR(VLOOKUP('BM18'!$A29,Filtro!$A$5:$I$351,3,FALSE),0) -> 0 | G29: =IFERROR(VLOOKUP('BM18'!$A29,Filtro!$A$5:$I$351,4,FALSE),0) -> 324 | H29: 29
A30: 18700240 | C30: Ecografías Obstétrica Primer Trimestre (<11 semanas) | D30: Médico/a | E30: =IFERROR(VLOOKUP('BM18'!$A30,Filtro!$A$5:$I$351,2,FALSE),0) -> 16 | F30: =IFERROR(VLOOKUP('BM18'!$A30,Filtro!$A$5:$I$351,3,FALSE),0) -> 0 | G30: =IFERROR(VLOOKUP('BM18'!$A30,Filtro!$A$5:$I$351,4,FALSE),0) -> 16 | H30: 30
A31: 18700250 | D31: Matrón/a | E31: =IFERROR(VLOOKUP('BM18'!$A31,Filtro!$A$5:$I$351,2,FALSE),0) -> 646 | F31: =IFERROR(VLOOKUP('BM18'!$A31,Filtro!$A$5:$I$351,3,FALSE),0) -> 0 | G31: =IFERROR(VLOOKUP('BM18'!$A31,Filtro!$A$5:$I$351,4,FALSE),0) -> 646 | H31: 31
A32: 18700260 | C32: Ecografias Obstétricas Primer Trimestre (11 - 14 semanas) | D32: Médico/a | E32: =IFERROR(VLOOKUP('BM18'!$A32,Filtro!$A$5:$I$351,2,FALSE),0) -> 68 | F32: =IFERROR(VLOOKUP('BM18'!$A32,Filtro!$A$5:$I$351,3,FALSE),0) -> 0 | G32: =IFERROR(VLOOKUP('BM18'!$A32,Filtro!$A$5:$I$351,4,FALSE),0) -> 68 | H32: 32
A33: 18700270 | D33: Matrón/a | E33: =IFERROR(VLOOKUP('BM18'!$A33,Filtro!$A$5:$I$351,2,FALSE),0) -> 1,264 | F33: =IFERROR(VLOOKUP('BM18'!$A33,Filtro!$A$5:$I$351,3,FALSE),0) -> 0 | G33: =IFERROR(VLOOKUP('BM18'!$A33,Filtro!$A$5:$I$351,4,FALSE),0) -> 1,264 | H33: 33
A34: 18700280 | C34: Ecografias Obstétricas Segundo Trimestre (22 - 24 semanas) | D34: Médico/a | E34: =IFERROR(VLOOKUP('BM18'!$A34,Filtro!$A$5:$I$351,2,FALSE),0) -> 193 | F34: =IFERROR(VLOOKUP('BM18'!$A34,Filtro!$A$5:$I$351,3,FALSE),0) -> 0 | G34: =IFERROR(VLOOKUP('BM18'!$A34,Filtro!$A$5:$I$351,4,FALSE),0) -> 193 | H34: 34
A35: 18700290 | D35: Matrón/a | E35: =IFERROR(VLOOKUP('BM18'!$A35,Filtro!$A$5:$I$351,2,FALSE),0) -> 327 | F35: =IFERROR(VLOOKUP('BM18'!$A35,Filtro!$A$5:$I$351,3,FALSE),0) -> 0 | G35: =IFERROR(VLOOKUP('BM18'!$A35,Filtro!$A$5:$I$351,4,FALSE),0) -> 327 | H35: 35
A36: 18700300 | C36: Ecografias Obstétricas Tercer Trimestre (30 - 34 semanas) | D36: Médico/a | E36: =IFERROR(VLOOKUP('BM18'!$A36,Filtro!$A$5:$I$351,2,FALSE),0) -> 124 | F36: =IFERROR(VLOOKUP('BM18'!$A36,Filtro!$A$5:$I$351,3,FALSE),0) -> 0 | G36: =IFERROR(VLOOKUP('BM18'!$A36,Filtro!$A$5:$I$351,4,FALSE),0) -> 124 | H36: 36
A37: 18700310 | D37: Matrón/a | E37: =IFERROR(VLOOKUP('BM18'!$A37,Filtro!$A$5:$I$351,2,FALSE),0) -> 457 | F37: =IFERROR(VLOOKUP('BM18'!$A37,Filtro!$A$5:$I$351,3,FALSE),0) -> 0 | G37: =IFERROR(VLOOKUP('BM18'!$A37,Filtro!$A$5:$I$351,4,FALSE),0) -> 457 | H37: 37
C38: Total Ecografías Obstétricas por profesional | D38: Médico/a | E38: =SUM(E30+E32+E34+E36) -> 401 | F38: =IFERROR(VLOOKUP('BM18'!$A38,Filtro!$A$5:$I$351,3,FALSE),0) -> 0 | G38: =IFERROR(VLOOKUP('BM18'!$A38,Filtro!$A$5:$I$351,4,FALSE),0) -> 0 | H38: 38
D39: Matrón/a | E39: =SUM(E31+E33+E35+E37) -> 2,694 | F39: =IFERROR(VLOOKUP('BM18'!$A39,Filtro!$A$5:$I$351,3,FALSE),0) -> 0 | G39: =IFERROR(VLOOKUP('BM18'!$A39,Filtro!$A$5:$I$351,4,FALSE),0) -> 0 | H39: 39
A40: 18700320 | C40: Ecografía de seguimiento DIU (Regulación de la Fertilidad) | D40: Médico/a | E40: =IFERROR(VLOOKUP('BM18'!$A40,Filtro!$A$5:$I$351,2,FALSE),0) -> 0 | F40: =IFERROR(VLOOKUP('BM18'!$A40,Filtro!$A$5:$I$351,3,FALSE),0) -> 0 | G40: =IFERROR(VLOOKUP('BM18'!$A40,Filtro!$A$5:$I$351,4,FALSE),0) -> 0 | H40: 40
A41: 18700330 | D41: Matrón/a | E41: =IFERROR(VLOOKUP('BM18'!$A41,Filtro!$A$5:$I$351,2,FALSE),0) -> 321 | F41: =IFERROR(VLOOKUP('BM18'!$A41,Filtro!$A$5:$I$351,3,FALSE),0) -> 0 | G41: =IFERROR(VLOOKUP('BM18'!$A41,Filtro!$A$5:$I$351,4,FALSE),0) -> 321 | H41: 41
A42: 18700340 | C42: Ecografía Transvaginal (control de Climaterio y Ginecológico) | D42: Médico/a | E42: =IFERROR(VLOOKUP('BM18'!$A42,Filtro!$A$5:$I$351,2,FALSE),0) -> 175 | F42: =IFERROR(VLOOKUP('BM18'!$A42,Filtro!$A$5:$I$351,3,FALSE),0) -> 0 | G42: =IFERROR(VLOOKUP('BM18'!$A42,Filtro!$A$5:$I$351,4,FALSE),0) -> 175 | H42: 42
A43: 18700350 | D43: Matrón/a | E43: =IFERROR(VLOOKUP('BM18'!$A43,Filtro!$A$5:$I$351,2,FALSE),0) -> 377 | F43: =IFERROR(VLOOKUP('BM18'!$A43,Filtro!$A$5:$I$351,3,FALSE),0) -> 0 | G43: =IFERROR(VLOOKUP('BM18'!$A43,Filtro!$A$5:$I$351,4,FALSE),0) -> 377 | H43: 43
C44: Total de ecografías obstetricas y ginecologicas | E44: =SUM(E38:E43) -> 3,968 | H44: 44
H45: 45
B46: SECCIÓN B: PROCEDIMIENTO DE APOYO CLÍNICO Y TERAPÉUTICO | H46: 46
B47: PROCEDIMIENTOS | C47: TOTAL | D47: SAPU/SAR/SUR | E47: Resto Establecimientos APS | H47: 47
D48: Total | E48: Total | H48: 48
A49: 18020100 | B49: PROC. DE NEUROLOGÍA | C49: =IFERROR(VLOOKUP('BM18'!$A49,Filtro!$A$5:$I$351,2,FALSE),0) -> 0 | D49: =IFERROR(VLOOKUP('BM18'!$A49,Filtro!$A$5:$I$351,3,FALSE),0) -> 0 | E49: =IFERROR(VLOOKUP('BM18'!$A49,Filtro!$A$5:$I$351,4,FALSE),0) -> 0 | H49: 49
A50: 18400400 | B50: PROC. DE OFTALMOLOGÍA | C50: =IFERROR(VLOOKUP('BM18'!$A50,Filtro!$A$5:$I$351,2,FALSE),0) -> 251 | D50: =IFERROR(VLOOKUP('BM18'!$A50,Filtro!$A$5:$I$351,3,FALSE),0) -> 176 | E50: =IFERROR(VLOOKUP('BM18'!$A50,Filtro!$A$5:$I$351,4,FALSE),0) -> 75 | H50: 50
A51: 18020200 | B51: PROC. DE OTORRINOLARINGOLOGÍA | C51: =IFERROR(VLOOKUP('BM18'!$A51,Filtro!$A$5:$I$351,2,FALSE),0) -> 179 | D51: =IFERROR(VLOOKUP('BM18'!$A51,Filtro!$A$5:$I$351,3,FALSE),0) -> 123 | E51: =IFERROR(VLOOKUP('BM18'!$A51,Filtro!$A$5:$I$351,4,FALSE),0) -> 56 | H51: 51
A52: 18020300 | B52: PROC. DE NEUMOLOGÍA | C52: =IFERROR(VLOOKUP('BM18'!$A52,Filtro!$A$5:$I$351,2,FALSE),0) -> 18,297 | D52: =IFERROR(VLOOKUP('BM18'!$A52,Filtro!$A$5:$I$351,3,FALSE),0) -> 14,773 | E52: =IFERROR(VLOOKUP('BM18'!$A52,Filtro!$A$5:$I$351,4,FALSE),0) -> 3,524 | H52: 52
A53: 18020400 | B53: PROC. DE DERMATOLOGÍA | C53: =IFERROR(VLOOKUP('BM18'!$A53,Filtro!$A$5:$I$351,2,FALSE),0) -> 826 | D53: =IFERROR(VLOOKUP('BM18'!$A53,Filtro!$A$5:$I$351,3,FALSE),0) -> 0 | E53: =IFERROR(VLOOKUP('BM18'!$A53,Filtro!$A$5:$I$351,4,FALSE),0) -> 826 | H53: 53
A54: 18020500 | B54: PROC. DE CARDIOLOGÍA | C54: =IFERROR(VLOOKUP('BM18'!$A54,Filtro!$A$5:$I$351,2,FALSE),0) -> 128,107 | D54: =IFERROR(VLOOKUP('BM18'!$A54,Filtro!$A$5:$I$351,3,FALSE),0) -> 27,405 | E54: =IFERROR(VLOOKUP('BM18'!$A54,Filtro!$A$5:$I$351,4,FALSE),0) -> 100,702 | H54: 54
A55: 18020600 | B55: PROC. DE GASTROENTEROLOGÍA | C55: =IFERROR(VLOOKUP('BM18'!$A55,Filtro!$A$5:$I$351,2,FALSE),0) -> 168 | D55: =IFERROR(VLOOKUP('BM18'!$A55,Filtro!$A$5:$I$351,3,FALSE),0) -> 136 | E55: =IFERROR(VLOOKUP('BM18'!$A55,Filtro!$A$5:$I$351,4,FALSE),0) -> 32 | H55: 55
A56: 18020700 | B56: PROC. DE UROLOGÍA | C56: =IFERROR(VLOOKUP('BM18'!$A56,Filtro!$A$5:$I$351,2,FALSE),0) -> 1,408 | D56: =IFERROR(VLOOKUP('BM18'!$A56,Filtro!$A$5:$I$351,3,FALSE),0) -> 1,008 | E56: =IFERROR(VLOOKUP('BM18'!$A56,Filtro!$A$5:$I$351,4,FALSE),0) -> 400 | H56: 56
A57: 18020800 | B57: PROC. ORTOPEDIA Y TRAUMATOLOGÍA | C57: =IFERROR(VLOOKUP('BM18'!$A57,Filtro!$A$5:$I$351,2,FALSE),0) -> 1,755 | D57: =IFERROR(VLOOKUP('BM18'!$A57,Filtro!$A$5:$I$351,3,FALSE),0) -> 1,752 | E57: =IFERROR(VLOOKUP('BM18'!$A57,Filtro!$A$5:$I$351,4,FALSE),0) -> 3 | H57: 57
A58: 18020900 | B58: PROC. GINECOLOGÍA | C58: =IFERROR(VLOOKUP('BM18'!$A58,Filtro!$A$5:$I$351,2,FALSE),0) -> 1,037 | D58: =IFERROR(VLOOKUP('BM18'!$A58,Filtro!$A$5:$I$351,3,FALSE),0) -> 0 | E58: =IFERROR(VLOOKUP('BM18'!$A58,Filtro!$A$5:$I$351,4,FALSE),0) -> 1,037 | H58: 58
B59: TOTAL | C59: =SUM(C49:C58) -> 152,028 | D59: =SUM(D49:D58) -> 45,373 | E59: =SUM(E49:E58) -> 106,655 | H59: 59
H60: 60
B61: SECCIÓN C: INTERVENCIONES QUIRÚRGICAS MENORES | H61: 61
D62: TOTAL | E62: SAPU/SAR/SUR | F62: Resto Establecimientos APS | H62: 62
E63: Total | H63: 63
A64: 18030000 | B64: TOTAL INTERVENCIONES QUIRÚRGICAS MENORES (SUB-GRUPO TEGUMENTOS) | D64: =IFERROR(VLOOKUP('BM18'!$A64,Filtro!$A$5:$I$351,2,FALSE),0) -> 5,887 | E64: =IFERROR(VLOOKUP('BM18'!$A64,Filtro!$A$5:$I$351,3,FALSE),0) -> 3,456 | F64: =IFERROR(VLOOKUP('BM18'!$A64,Filtro!$A$5:$I$351,4,FALSE),0) -> 2,431 | H64: 64
B65: SECCIÓN D : INTERVENCIONES QUIRÚRGICAS MENORES, POR EDAD | H65: 65
B66: INTERVENCIONES QUIRÚRGICAS | C66: TOTAL | D66: < 15 AÑOS | E66: 15 Y + AÑOS | H66: 66
B67: TOTAL | C67: =SUM(D67:E67) -> 5,747 | D67: =SUM(D68:D69) -> 609 | E67: =SUM(E68:E69) -> 5,138 | F67: =V67 -> El Total de Intervenciones Quirúrgicas de la Sección C debe coincidir con el Total de la Seccion D | H67: 67 | V67: =IF(C67=D64,"","El Total de Intervenciones Quirúrgicas de la Sección C debe coincidir con el Total de la Seccion D") -> El Total de Intervenciones Quirúrgicas de la Sección C debe coincidir con el Total de la Seccion D | W67: =IF(C67=D64,0,1) -> 1
A68: 18040100 | B68: SAPU/SAR | C68: =IFERROR(VLOOKUP('BM18'!$A68,Filtro!$A$5:$I$351,2,FALSE),0) -> 3,427 | D68: =IFERROR(VLOOKUP('BM18'!$A68,Filtro!$A$5:$I$351,3,FALSE),0) -> 471 | E68: =IFERROR(VLOOKUP('BM18'!$A68,Filtro!$A$5:$I$351,4,FALSE),0) -> 2,956 | F68: =V68 -> El Total de Intervenciones Quirúrgicas menores SAPU/SAR debe coincidir con el Total de Intervenciones Quirúrgicas menores SAPU/SAR/SUR de la Sección C. | H68: 68 | V68: =IF(C68=E64,"","El Total de Intervenciones Quirúrgicas menores SAPU/SAR debe coincidir con el Total de Intervenciones Quirúrgicas menores SAPU/SAR/SUR de la Sección C. ") -> El Total de Intervenciones Quirúrgicas menores SAPU/SAR debe coincidir con el Total de Intervenciones Quirúrgicas menores SAPU/SAR/SUR de la Sección C. | W68: =IF(C68<>#REF!,1,0) -> 
A69: 18040200 | B69: RESTO ESTABLECIMIENTOS APS | C69: =IFERROR(VLOOKUP('BM18'!$A69,Filtro!$A$5:$I$351,2,FALSE),0) -> 2,312 | D69: =IFERROR(VLOOKUP('BM18'!$A69,Filtro!$A$5:$I$351,3,FALSE),0) -> 138 | E69: =IFERROR(VLOOKUP('BM18'!$A69,Filtro!$A$5:$I$351,4,FALSE),0) -> 2,182 | F69: =V69 -> * El Total de Intervenciones Quirúrgicas menores NO SAPU debe coincidir con el Total de Intervenciones Quirúrgicas menores NO SAPU/NO SUR de la Sección C. | H69: 69 | V69: =IF(C69=F64,""," * El Total de Intervenciones Quirúrgicas menores NO SAPU debe coincidir con el Total de Intervenciones Quirúrgicas menores NO SAPU/NO SUR de la Sección C. ") -> * El Total de Intervenciones Quirúrgicas menores NO SAPU debe coincidir con el Total de Intervenciones Quirúrgicas menores NO SAPU/NO SUR de la Sección C. | W69: =IF(C69<>#REF!,1,0) -> 
B70: SECCIÓN E: MISCELÁNEOS | H70: 70
B71: MISCELÁNEOS | C71: TOTAL | D71: SAPU/SAR/SUR | E71: Resto Establecimientos APS | H71: 71
D72: Total | E72: Total | H72: 72
A73: 18090000 | B73: PROCEDIMIENTOS DE PODOLOGIA | C73: =SUM(D73:E73) -> 29,103 | D73: =IFERROR(VLOOKUP('BM18'!$A73,Filtro!$A$5:$I$351,3,FALSE),0) -> 865 | E73: =IFERROR(VLOOKUP('BM18'!$A73,Filtro!$A$5:$I$351,4,FALSE),0) -> 28,238 | H73: 73
A74: 18050100 | B74: CURACIÓN SIMPLE AMBULATORIA | C74: =SUM(D74:E74) -> 89,012 | D74: =IFERROR(VLOOKUP('BM18'!$A74,Filtro!$A$5:$I$351,3,FALSE),0) -> 12,801 | E74: =IFERROR(VLOOKUP('BM18'!$A74,Filtro!$A$5:$I$351,4,FALSE),0) -> 76,211 | H74: 74
A75: 18050400 | B75: CURACION AVANZADA UV | C75: 6,972 | D75: =IFERROR(VLOOKUP('BM18'!$A75,Filtro!$A$5:$I$351,3,FALSE),0) -> 450 | E75: =IFERROR(VLOOKUP('BM18'!$A75,Filtro!$A$5:$I$351,4,FALSE),0) -> 6,522 | H75: 75
A76: 18050500 | B76: CURACION COMPLEJA | C76: 48,274 | D76: =IFERROR(VLOOKUP('BM18'!$A76,Filtro!$A$5:$I$351,3,FALSE),0) -> 1,656 | E76: =IFERROR(VLOOKUP('BM18'!$A76,Filtro!$A$5:$I$351,4,FALSE),0) -> 46,618 | H76: 76
A77: 18050200 | B77: AUTOCONTROL PERSONAS CON DIABETES INSULINO DEPENDIENTE (D.I.D. MENSUAL) | C77: 3,365 | D77: =IFERROR(VLOOKUP('BM18'!$A77,Filtro!$A$5:$I$351,3,FALSE),0) -> 1,409 | E77: =IFERROR(VLOOKUP('BM18'!$A77,Filtro!$A$5:$I$351,4,FALSE),0) -> 1,956 | H77: 77
A78: 18050300 | B78: OXIGENOTERAPIA A DOMICILIO | C78: =SUM(D78:E78) -> 1,036 | D78: =IFERROR(VLOOKUP('BM18'!$A78,Filtro!$A$5:$I$351,3,FALSE),0) -> 183 | E78: =IFERROR(VLOOKUP('BM18'!$A78,Filtro!$A$5:$I$351,4,FALSE),0) -> 853 | H78: 78
B79: AUTOCONTROL PERSONAS CON DIABETES INSULINO DEPENDIENTE (D.I.D. MENSUAL) | H79: 79
B80: SECCIÓN F: PRESCRIPCIONES ADMINISTRADAS EN URGENCIA | H80: 80
B81: ATENCIÓN | C81: TOTAL | H81: 81
H82: 82
A83: 18400700 | B83: URGENCIA SAPU/SAR/SUR | C83: =IFERROR(VLOOKUP('BM18'!$A83,Filtro!$A$5:$I$351,2,FALSE),0) -> 1,086,992 | H83: 83
B84: SECCIÓN G : OTRAS ATENCIONES A PACIENTES AMBULATORIOS | H84: 84
B85: TIPO DE ATENCIÓN | C85: TOTAL | D85: ATENCIONES POR EDAD | J85: 85
D86: < 1 año | E86: 1 - 4 años | F86: 5 a 9 años | G86: 10 a 19 años | H86: 20 a 64 años | I86: 65 años y más | J86: 86
A87: 18070100 | B87: POR TERAPÉUTICA OCUPACIONAL | C87: =IFERROR(VLOOKUP('BM18'!$A87,Filtro!$A$5:$I$351,2,FALSE),0) -> 457 | D87: =IFERROR(VLOOKUP('BM18'!$A87,Filtro!$A$5:$I$351,3,FALSE),0) -> 10 | E87: =IFERROR(VLOOKUP('BM18'!$A87,Filtro!$A$5:$I$351,4,FALSE),0) -> 271 | F87: =IFERROR(VLOOKUP('BM18'!$A87,Filtro!$A$5:$I$351,5,FALSE),0) -> 94 | G87: =IFERROR(VLOOKUP('BM18'!$A87,Filtro!$A$5:$I$351,6,FALSE),0) -> 25 | H87: =IFERROR(VLOOKUP('BM18'!$A87,Filtro!$A$5:$I$351,7,FALSE),0) -> 5 | I87: =IFERROR(VLOOKUP('BM18'!$A87,Filtro!$A$5:$I$351,8,FALSE),0) -> 52 | J87: 87
A88: 18070300 | B88: POR KINESIOLOGO (NO SAPU) | C88: =IFERROR(VLOOKUP('BM18'!$A88,Filtro!$A$5:$I$351,2,FALSE),0) -> 1,734 | D88: =IFERROR(VLOOKUP('BM18'!$A88,Filtro!$A$5:$I$351,3,FALSE),0) -> 413 | E88: =IFERROR(VLOOKUP('BM18'!$A88,Filtro!$A$5:$I$351,4,FALSE),0) -> 587 | F88: =IFERROR(VLOOKUP('BM18'!$A88,Filtro!$A$5:$I$351,5,FALSE),0) -> 82 | G88: =IFERROR(VLOOKUP('BM18'!$A88,Filtro!$A$5:$I$351,6,FALSE),0) -> 64 | H88: =IFERROR(VLOOKUP('BM18'!$A88,Filtro!$A$5:$I$351,7,FALSE),0) -> 325 | I88: =IFERROR(VLOOKUP('BM18'!$A88,Filtro!$A$5:$I$351,8,FALSE),0) -> 263 | J88: 88
A89: 18400900 | B89: POR EDUCADORA DE PÁRVULO/DIFERENCIAL | C89: =IFERROR(VLOOKUP('BM18'!$A89,Filtro!$A$5:$I$351,2,FALSE),0) -> 13,906 | D89: =IFERROR(VLOOKUP('BM18'!$A89,Filtro!$A$5:$I$351,3,FALSE),0) -> 2,641 | E89: =IFERROR(VLOOKUP('BM18'!$A89,Filtro!$A$5:$I$351,4,FALSE),0) -> 11,265 | J89: 89
B90: SECCIÓN H: OTROS TRASLADOS DE PACIENTES | H90: 90
B91: TIPO DE ACCION | D91: TOTAL | E91: POR COMPRA DE SERVICIO | H91: 91
A92: 18090200 | B92: TRASLADOS NO DE URGENCIA | C92: AMBULANCIA | D92: =IFERROR(VLOOKUP('BM18'!$A92,Filtro!$A$5:$I$351,2,FALSE),0) -> 8,707 | E92: =IFERROR(VLOOKUP('BM18'!$A92,Filtro!$A$5:$I$351,3,FALSE),0) -> 1,805 | H92: 92
A93: 18090300 | C93: MARÍTIMO | D93: =IFERROR(VLOOKUP('BM18'!$A93,Filtro!$A$5:$I$351,2,FALSE),0) -> 20 | E93: =IFERROR(VLOOKUP('BM18'!$A93,Filtro!$A$5:$I$351,3,FALSE),0) -> 0 | H93: 93
A94: 18090400 | C94: AÉREO | D94: =IFERROR(VLOOKUP('BM18'!$A94,Filtro!$A$5:$I$351,2,FALSE),0) -> 0 | E94: =IFERROR(VLOOKUP('BM18'!$A94,Filtro!$A$5:$I$351,3,FALSE),0) -> 0 | H94: 94
B95: SECCIÓN I: EXAMENES PESQUISA COVID-19 | H95: 95
B96: TIPO DE EXÁMEN | C96: TOTAL | D96: Por grupos etarios | G96: POR COMPRA DE SERVICIO | H96: 96
D97: < 15 años | E97: > 15-64 años | F97: 65 y más años | H97: 97
A98: 18700100 | B98: 0306082: Reacción de Polimerasa en Cadena (P.C.R.), virus Influenza, virus Herpes, citomegalovirus, hepatitis C, mycobacteria TBC, SARS CoV -2 c/u (incluye toma muestra hisopado nasofaríngeo). | C98: =IFERROR(VLOOKUP('BM18'!$A98,Filtro!$A$5:$I$351,2,FALSE),0) -> 11206 | D98: =IFERROR(VLOOKUP('BM18'!$A98,Filtro!$A$5:$I$351,3,FALSE),0) -> 3403 | E98: =IFERROR(VLOOKUP('BM18'!$A98,Filtro!$A$5:$I$351,4,FALSE),0) -> 6139 | F98: =IFERROR(VLOOKUP('BM18'!$A98,Filtro!$A$5:$I$351,5,FALSE),0) -> 1664 | G98: =IFERROR(VLOOKUP('BM18'!$A98,Filtro!$A$5:$I$351,6,FALSE),0) -> 0 | H98: 98
B99: SECCIÓN J: EXAMENES TEST RAPIDOS COVID-19 | H99: 99
B100: Test rápido para detección de anticuerpos CoVID-19 | C100: TOTAL | D100: Por grupos etarios | G100: Informados | H100: Positivo | I100: Negativo | J100: 100
D101: < 15 años | E101: > 15-64 años | F101: 65 y más años | J101: 101
A102: 18700110 | B102: OnSite COVID-19 IgG/IgM Rapid Test | C102: =IFERROR(VLOOKUP('BM18'!$A102,Filtro!$A$5:$I$351,2,FALSE),0) -> 122 | D102: =IFERROR(VLOOKUP('BM18'!$A102,Filtro!$A$5:$I$351,3,FALSE),0) -> 23 | E102: =IFERROR(VLOOKUP('BM18'!$A102,Filtro!$A$5:$I$351,4,FALSE),0) -> 66 | F102: =IFERROR(VLOOKUP('BM18'!$A102,Filtro!$A$5:$I$351,5,FALSE),0) -> 33 | G102: =IFERROR(VLOOKUP('BM18'!$A102,Filtro!$A$5:$I$351,6,FALSE),0) -> 115 | H102: =IFERROR(VLOOKUP('BM18'!$A102,Filtro!$A$5:$I$351,7,FALSE),0) -> 7 | I102: =IFERROR(VLOOKUP('BM18'!$A102,Filtro!$A$5:$I$351,8,FALSE),0) -> 115 | J102: 102
A103: 18700120 | B103: DPP® COVID-19 IgM/IgG System | C103: =IFERROR(VLOOKUP('BM18'!$A103,Filtro!$A$5:$I$351,2,FALSE),0) -> 0 | D103: =IFERROR(VLOOKUP('BM18'!$A103,Filtro!$A$5:$I$351,3,FALSE),0) -> 0 | E103: =IFERROR(VLOOKUP('BM18'!$A103,Filtro!$A$5:$I$351,4,FALSE),0) -> 0 | F103: =IFERROR(VLOOKUP('BM18'!$A103,Filtro!$A$5:$I$351,5,FALSE),0) -> 0 | G103: =IFERROR(VLOOKUP('BM18'!$A103,Filtro!$A$5:$I$351,6,FALSE),0) -> 0 | H103: =IFERROR(VLOOKUP('BM18'!$A103,Filtro!$A$5:$I$351,7,FALSE),0) -> 0 | I103: =IFERROR(VLOOKUP('BM18'!$A103,Filtro!$A$5:$I$351,8,FALSE),0) -> 0 | J103: 103
A104: 18700130 | B104: LUMIRATEK COVID-19 (IgG / IgM) | C104: =IFERROR(VLOOKUP('BM18'!$A104,Filtro!$A$5:$I$351,2,FALSE),0) -> 0 | D104: =IFERROR(VLOOKUP('BM18'!$A104,Filtro!$A$5:$I$351,3,FALSE),0) -> 0 | E104: =IFERROR(VLOOKUP('BM18'!$A104,Filtro!$A$5:$I$351,4,FALSE),0) -> 0 | F104: =IFERROR(VLOOKUP('BM18'!$A104,Filtro!$A$5:$I$351,5,FALSE),0) -> 0 | G104: =IFERROR(VLOOKUP('BM18'!$A104,Filtro!$A$5:$I$351,6,FALSE),0) -> 0 | H104: =IFERROR(VLOOKUP('BM18'!$A104,Filtro!$A$5:$I$351,7,FALSE),0) -> 0 | I104: =IFERROR(VLOOKUP('BM18'!$A104,Filtro!$A$5:$I$351,8,FALSE),0) -> 0 | J104: 104
A105: 18700140 | B105: VivaDiag™ COVID19 IgM/IgG Rapid Test | C105: =IFERROR(VLOOKUP('BM18'!$A105,Filtro!$A$5:$I$351,2,FALSE),0) -> 42 | D105: =IFERROR(VLOOKUP('BM18'!$A105,Filtro!$A$5:$I$351,3,FALSE),0) -> 0 | E105: =IFERROR(VLOOKUP('BM18'!$A105,Filtro!$A$5:$I$351,4,FALSE),0) -> 42 | F105: =IFERROR(VLOOKUP('BM18'!$A105,Filtro!$A$5:$I$351,5,FALSE),0) -> 0 | G105: =IFERROR(VLOOKUP('BM18'!$A105,Filtro!$A$5:$I$351,6,FALSE),0) -> 29 | H105: =IFERROR(VLOOKUP('BM18'!$A105,Filtro!$A$5:$I$351,7,FALSE),0) -> 16 | I105: =IFERROR(VLOOKUP('BM18'!$A105,Filtro!$A$5:$I$351,8,FALSE),0) -> 26 | J105: 105
A106: 18700150 | B106: Smart Test Covid19 | C106: =IFERROR(VLOOKUP('BM18'!$A106,Filtro!$A$5:$I$351,2,FALSE),0) -> 0 | D106: =IFERROR(VLOOKUP('BM18'!$A106,Filtro!$A$5:$I$351,3,FALSE),0) -> 0 | E106: =IFERROR(VLOOKUP('BM18'!$A106,Filtro!$A$5:$I$351,4,FALSE),0) -> 0 | F106: =IFERROR(VLOOKUP('BM18'!$A106,Filtro!$A$5:$I$351,5,FALSE),0) -> 0 | G106: =IFERROR(VLOOKUP('BM18'!$A106,Filtro!$A$5:$I$351,6,FALSE),0) -> 0 | H106: =IFERROR(VLOOKUP('BM18'!$A106,Filtro!$A$5:$I$351,7,FALSE),0) -> 0 | I106: =IFERROR(VLOOKUP('BM18'!$A106,Filtro!$A$5:$I$351,8,FALSE),0) -> 0 | J106: 106
A107: 18700160 | B107: Cellex qSARS-CoV2 IgG/IgM Cassette Rapid Test kit | C107: =IFERROR(VLOOKUP('BM18'!$A107,Filtro!$A$5:$I$351,2,FALSE),0) -> 0 | D107: =IFERROR(VLOOKUP('BM18'!$A107,Filtro!$A$5:$I$351,3,FALSE),0) -> 0 | E107: =IFERROR(VLOOKUP('BM18'!$A107,Filtro!$A$5:$I$351,4,FALSE),0) -> 0 | F107: =IFERROR(VLOOKUP('BM18'!$A107,Filtro!$A$5:$I$351,5,FALSE),0) -> 0 | G107: =IFERROR(VLOOKUP('BM18'!$A107,Filtro!$A$5:$I$351,6,FALSE),0) -> 0 | H107: =IFERROR(VLOOKUP('BM18'!$A107,Filtro!$A$5:$I$351,7,FALSE),0) -> 0 | I107: =IFERROR(VLOOKUP('BM18'!$A107,Filtro!$A$5:$I$351,8,FALSE),0) -> 0 | J107: 107
A108: 18700170 | B108: CORONAVÍRUS IgG/IgM (COVID19) | C108: =IFERROR(VLOOKUP('BM18'!$A108,Filtro!$A$5:$I$351,2,FALSE),0) -> 2 | D108: =IFERROR(VLOOKUP('BM18'!$A108,Filtro!$A$5:$I$351,3,FALSE),0) -> 0 | E108: =IFERROR(VLOOKUP('BM18'!$A108,Filtro!$A$5:$I$351,4,FALSE),0) -> 2 | F108: =IFERROR(VLOOKUP('BM18'!$A108,Filtro!$A$5:$I$351,5,FALSE),0) -> 0 | G108: =IFERROR(VLOOKUP('BM18'!$A108,Filtro!$A$5:$I$351,6,FALSE),0) -> 2 | H108: =IFERROR(VLOOKUP('BM18'!$A108,Filtro!$A$5:$I$351,7,FALSE),0) -> 0 | I108: =IFERROR(VLOOKUP('BM18'!$A108,Filtro!$A$5:$I$351,8,FALSE),0) -> 2 | J108: 108
A109: 18700180 | B109: COVID-19 IgG/IgM ECO Teste | C109: =IFERROR(VLOOKUP('BM18'!$A109,Filtro!$A$5:$I$351,2,FALSE),0) -> 0 | D109: =IFERROR(VLOOKUP('BM18'!$A109,Filtro!$A$5:$I$351,3,FALSE),0) -> 0 | E109: =IFERROR(VLOOKUP('BM18'!$A109,Filtro!$A$5:$I$351,4,FALSE),0) -> 0 | F109: =IFERROR(VLOOKUP('BM18'!$A109,Filtro!$A$5:$I$351,5,FALSE),0) -> 0 | G109: =IFERROR(VLOOKUP('BM18'!$A109,Filtro!$A$5:$I$351,6,FALSE),0) -> 0 | H109: =IFERROR(VLOOKUP('BM18'!$A109,Filtro!$A$5:$I$351,7,FALSE),0) -> 0 | I109: =IFERROR(VLOOKUP('BM18'!$A109,Filtro!$A$5:$I$351,8,FALSE),0) -> 0 | J109: 109
A110: 18700190 | B110: Anti COVID-19 IgG/IgM Rapid Test | C110: =IFERROR(VLOOKUP('BM18'!$A110,Filtro!$A$5:$I$351,2,FALSE),0) -> 22 | D110: =IFERROR(VLOOKUP('BM18'!$A110,Filtro!$A$5:$I$351,3,FALSE),0) -> 0 | E110: =IFERROR(VLOOKUP('BM18'!$A110,Filtro!$A$5:$I$351,4,FALSE),0) -> 22 | F110: =IFERROR(VLOOKUP('BM18'!$A110,Filtro!$A$5:$I$351,5,FALSE),0) -> 0 | G110: =IFERROR(VLOOKUP('BM18'!$A110,Filtro!$A$5:$I$351,6,FALSE),0) -> 22 | H110: =IFERROR(VLOOKUP('BM18'!$A110,Filtro!$A$5:$I$351,7,FALSE),0) -> 5 | I110: =IFERROR(VLOOKUP('BM18'!$A110,Filtro!$A$5:$I$351,8,FALSE),0) -> 17 | J110: 110
A111: 18700210 | B111: Família Teste Rápido em Cassete 2019-nCoV IgG/IgM | C111: =IFERROR(VLOOKUP('BM18'!$A111,Filtro!$A$5:$I$351,2,FALSE),0) -> 0 | D111: =IFERROR(VLOOKUP('BM18'!$A111,Filtro!$A$5:$I$351,3,FALSE),0) -> 0 | E111: =IFERROR(VLOOKUP('BM18'!$A111,Filtro!$A$5:$I$351,4,FALSE),0) -> 0 | F111: =IFERROR(VLOOKUP('BM18'!$A111,Filtro!$A$5:$I$351,5,FALSE),0) -> 0 | G111: =IFERROR(VLOOKUP('BM18'!$A111,Filtro!$A$5:$I$351,6,FALSE),0) -> 0 | H111: =IFERROR(VLOOKUP('BM18'!$A111,Filtro!$A$5:$I$351,7,FALSE),0) -> 0 | I111: =IFERROR(VLOOKUP('BM18'!$A111,Filtro!$A$5:$I$351,8,FALSE),0) -> 0 | J111: 111
A112: 18700220 | B112: Smart Test Covid19 Vyttra | C112: =IFERROR(VLOOKUP('BM18'!$A112,Filtro!$A$5:$I$351,2,FALSE),0) -> 0 | D112: =IFERROR(VLOOKUP('BM18'!$A112,Filtro!$A$5:$I$351,3,FALSE),0) -> 0 | E112: =IFERROR(VLOOKUP('BM18'!$A112,Filtro!$A$5:$I$351,4,FALSE),0) -> 0 | F112: =IFERROR(VLOOKUP('BM18'!$A112,Filtro!$A$5:$I$351,5,FALSE),0) -> 0 | G112: =IFERROR(VLOOKUP('BM18'!$A112,Filtro!$A$5:$I$351,6,FALSE),0) -> 0 | H112: =IFERROR(VLOOKUP('BM18'!$A112,Filtro!$A$5:$I$351,7,FALSE),0) -> 0 | I112: =IFERROR(VLOOKUP('BM18'!$A112,Filtro!$A$5:$I$351,8,FALSE),0) -> 0 | J112: 112
A113: 18700230 | B113: Lo desconoce | C113: =IFERROR(VLOOKUP('BM18'!$A113,Filtro!$A$5:$I$351,2,FALSE),0) -> 2377 | D113: =IFERROR(VLOOKUP('BM18'!$A113,Filtro!$A$5:$I$351,3,FALSE),0) -> 370 | E113: =IFERROR(VLOOKUP('BM18'!$A113,Filtro!$A$5:$I$351,4,FALSE),0) -> 1777 | F113: =IFERROR(VLOOKUP('BM18'!$A113,Filtro!$A$5:$I$351,5,FALSE),0) -> 230 | G113: =IFERROR(VLOOKUP('BM18'!$A113,Filtro!$A$5:$I$351,6,FALSE),0) -> 1391 | H113: =IFERROR(VLOOKUP('BM18'!$A113,Filtro!$A$5:$I$351,7,FALSE),0) -> 395 | I113: =IFERROR(VLOOKUP('BM18'!$A113,Filtro!$A$5:$I$351,8,FALSE),0) -> 1376 | J113: 113
B114: TOTAL | C114: =SUM(C102:C113) -> 2565 | D114: 393 | E114: 1909 | F114: 263 | G114: 1559 | H114: 423 | I114: 1536 | J114: 114
A117: CODIGOS NUEVOS
A118: 18050400
A119: 18050500
A121: CODIGO ELIMINADO
A122: 18050600

Sheet BM18A
B1: SERVICIO DE SALUD
B2: =CONCATENATE("COMUNA: ",[1]NOMBRE!B2," ","( ",[1]NOMBRE!C2,[1]NOMBRE!D2,[1]NOMBRE!E2,[1]NOMBRE!F2,[1]NOMBRE!G2," )") -> COMUNA: ( )
B3: =CONCATENATE("ESTABLECIMIENTO/ESTRATEGIA: ",[1]NOMBRE!B3," ","( ",[1]NOMBRE!C3,[1]NOMBRE!D3,[1]NOMBRE!E3,[1]NOMBRE!F3,[1]NOMBRE!G3,[1]NOMBRE!H3," )") -> ESTABLECIMIENTO/ESTRATEGIA: ( )
B4: =CONCATENATE("MES: ",[1]NOMBRE!B6," ","( ",[1]NOMBRE!C6,[1]NOMBRE!D6," )") -> MES: ( )
B5: =CONCATENATE("AÑO: ",[1]NOMBRE!B7) -> AÑO: 2023
B7: REM-18A - LIBRO DE PRESTACIONES DE APOYO DIAGNOSTICO y TERAPÉUTICO (USO EXCLUSIVO DE ESTABLECIMIENTOS MUNICIPALES)
B9: SECCIÓN A: EXÁMENES DE DIAGNOSTICO
B10: CÓDIGOS | C10: EXÁMENES | D10: TOTAL | E10: SAPU/SAR/SUR | F10: Resto Establecimientos APS | G10: Compra de Servicios
B12: SANGRE HEMATOLOGÍA | H12: Línea
A13: 80301001 | B13: 0301001 | C13: Acidificación del suero, test de Ham | D13: =SUM(E13:F13) -> 0 | E13: =IFERROR(VLOOKUP($A13,Filtro!$A$5:$I$351,3,FALSE),0) -> 0 | F13: =IFERROR(VLOOKUP($A13,Filtro!$A$5:$I$351,4,FALSE),0) -> 0 | G13: =IFERROR(VLOOKUP($A13,Filtro!$A$5:$I$351,5,FALSE),0) -> 0 | H13: 13
A14: 80301002 | B14: 0301002 | C14: Acido fólico o folatos | D14: =SUM(E14:F14) -> 0 | E14: =IFERROR(VLOOKUP($A14,Filtro!$A$5:$I$351,3,FALSE),0) -> 0 | F14: =IFERROR(VLOOKUP($A14,Filtro!$A$5:$I$351,4,FALSE),0) -> 0 | G14: =IFERROR(VLOOKUP($A14,Filtro!$A$5:$I$351,5,FALSE),0) -> 25 | H14: 14
A15: 80301003 | B15: 0301003 | C15: Adenograma, esplenograma, mielograma c/u | D15: 0 | E15: =IFERROR(VLOOKUP($A15,Filtro!$A$5:$I$351,3,FALSE),0) -> 0 | F15: =IFERROR(VLOOKUP($A15,Filtro!$A$5:$I$351,4,FALSE),0) -> 0 | G15: =IFERROR(VLOOKUP($A15,Filtro!$A$5:$I$351,5,FALSE),0) -> 0 | H15: 15
A16: 80301004 | B16: 0301004 | C16: Adhesividad plaquetaria | D16: 0 | E16: =IFERROR(VLOOKUP($A16,Filtro!$A$5:$I$351,3,FALSE),0) -> 0 | F16: =IFERROR(VLOOKUP($A16,Filtro!$A$5:$I$351,4,FALSE),0) -> 0 | G16: =IFERROR(VLOOKUP($A16,Filtro!$A$5:$I$351,5,FALSE),0) -> 0 | H16: 16
A17: 80301005 | B17: 0301005 | C17: Aglutininas anti Rho | D17: 0 | E17: =IFERROR(VLOOKUP($A17,Filtro!$A$5:$I$351,3,FALSE),0) -> 0 | F17: =IFERROR(VLOOKUP($A17,Filtro!$A$5:$I$351,4,FALSE),0) -> 0 | G17: =IFERROR(VLOOKUP($A17,Filtro!$A$5:$I$351,5,FALSE),0) -> 0 | H17: 17
A18: 80301006 | B18: 0301006 | C18: Agregación plaquetaria | D18: 0 | E18: =IFERROR(VLOOKUP($A18,Filtro!$A$5:$I$351,3,FALSE),0) -> 0 | F18: =IFERROR(VLOOKUP($A18,Filtro!$A$5:$I$351,4,FALSE),0) -> 0 | G18: =IFERROR(VLOOKUP($A18,Filtro!$A$5:$I$351,5,FALSE),0) -> 0 | H18: 18
A19: 80301007 | B19: 0301007 | C19: Anticoagulantes circulantes o anticoagulante lúpico | D19: 0 | E19: =IFERROR(VLOOKUP($A19,Filtro!$A$5:$I$351,3,FALSE),0) -> 0 | F19: =IFERROR(VLOOKUP($A19,Filtro!$A$5:$I$351,4,FALSE),0) -> 0 | G19: =IFERROR(VLOOKUP($A19,Filtro!$A$5:$I$351,5,FALSE),0) -> 0 | H19: 19
A20: 80301008 | B20: 0301008 | C20: Antitrombina III | D20: 0 | E20: =IFERROR(VLOOKUP($A20,Filtro!$A$5:$I$351,3,FALSE),0) -> 0 | F20: =IFERROR(VLOOKUP($A20,Filtro!$A$5:$I$351,4,FALSE),0) -> 0 | G20: =IFERROR(VLOOKUP($A20,Filtro!$A$5:$I$351,5,FALSE),0) -> 0 | H20: 20
A21: 80301009 | B21: 0301009 | C21: Auto-hemólisis test, con y sin glucosa | D21: 0 | E21: =IFERROR(VLOOKUP($A21,Filtro!$A$5:$I$351,3,FALSE),0) -> 0 | F21: =IFERROR(VLOOKUP($A21,Filtro!$A$5:$I$351,4,FALSE),0) -> 0 | G21: =IFERROR(VLOOKUP($A21,Filtro!$A$5:$I$351,5,FALSE),0) -> 0 | H21: 21
A22: 80301010 | B22: 0301010 | C22: Células del lupus, cada muestra | D22: 0 | E22: =IFERROR(VLOOKUP($A22,Filtro!$A$5:$I$351,3,FALSE),0) -> 0 | F22: =IFERROR(VLOOKUP($A22,Filtro!$A$5:$I$351,4,FALSE),0) -> 0 | G22: =IFERROR(VLOOKUP($A22,Filtro!$A$5:$I$351,5,FALSE),0) -> 0 | H22: 22
A23: 80301011 | B23: 0301011 | C23: Coagulación, tiempo de | D23: 0 | E23: =IFERROR(VLOOKUP($A23,Filtro!$A$5:$I$351,3,FALSE),0) -> 0 | F23: =IFERROR(VLOOKUP($A23,Filtro!$A$5:$I$351,4,FALSE),0) -> 0 | G23: =IFERROR(VLOOKUP($A23,Filtro!$A$5:$I$351,5,FALSE),0) -> 227 | H23: 23
A24: 80301012 | B24: 0301012 | C24: Coágulo, tiempo de retracción del | D24: 0 | E24: =IFERROR(VLOOKUP($A24,Filtro!$A$5:$I$351,3,FALSE),0) -> 0 | F24: =IFERROR(VLOOKUP($A24,Filtro!$A$5:$I$351,4,FALSE),0) -> 0 | G24: =IFERROR(VLOOKUP($A24,Filtro!$A$5:$I$351,5,FALSE),0) -> 0 | H24: 24
A25: 80301013 | B25: 0301013 | C25: Coágulo, tiempo de lisis del | D25: 0 | E25: =IFERROR(VLOOKUP($A25,Filtro!$A$5:$I$351,3,FALSE),0) -> 0 | F25: =IFERROR(VLOOKUP($A25,Filtro!$A$5:$I$351,4,FALSE),0) -> 0 | G25: =IFERROR(VLOOKUP($A25,Filtro!$A$5:$I$351,5,FALSE),0) -> 0 | H25: 25
A26: 80301014 | B26: 0301014 | C26: Coombs directo, test de | D26: 0 | E26: =IFERROR(VLOOKUP($A26,Filtro!$A$5:$I$351,3,FALSE),0) -> 0 | F26: =IFERROR(VLOOKUP($A26,Filtro!$A$5:$I$351,4,FALSE),0) -> 0 | G26: =IFERROR(VLOOKUP($A26,Filtro!$A$5:$I$351,5,FALSE),0) -> 122 | H26: 26
A27: 80301015 | B27: 0301015 | C27: Coombs indirecto, prueba de | D27: 2 | E27: =IFERROR(VLOOKUP($A27,Filtro!$A$5:$I$351,3,FALSE),0) -> 0 | F27: =IFERROR(VLOOKUP($A27,Filtro!$A$5:$I$351,4,FALSE),0) -> 2 | G27: =IFERROR(VLOOKUP($A27,Filtro!$A$5:$I$351,5,FALSE),0) -> 1,474 | H27: 27
A28: 80301016 | B28: 0301016 | C28: Cuerpos de Heinz | D28: 0 | E28: =IFERROR(VLOOKUP($A28,Filtro!$A$5:$I$351,3,FALSE),0) -> 0 | F28: =IFERROR(VLOOKUP($A28,Filtro!$A$5:$I$351,4,FALSE),0) -> 0 | G28: =IFERROR(VLOOKUP($A28,Filtro!$A$5:$I$351,5,FALSE),0) -> 0 | H28: 28
A29: 80301017 | B29: 0301017 | C29: Deshidrogenasa glucosa-6-fosfato en eritrocitos | D29: 0 | E29: =IFERROR(VLOOKUP($A29,Filtro!$A$5:$I$351,3,FALSE),0) -> 0 | F29: =IFERROR(VLOOKUP($A29,Filtro!$A$5:$I$351,4,FALSE),0) -> 0 | G29: =IFERROR(VLOOKUP($A29,Filtro!$A$5:$I$351,5,FALSE),0) -> 0 | H29: 29
A30: 80301020 | B30: 0301020 | C30: Euglobulinas, tiempo de lisis de | D30: 0 | E30: =IFERROR(VLOOKUP($A30,Filtro!$A$5:$I$351,3,FALSE),0) -> 0 | F30: =IFERROR(VLOOKUP($A30,Filtro!$A$5:$I$351,4,FALSE),0) -> 0 | G30: =IFERROR(VLOOKUP($A30,Filtro!$A$5:$I$351,5,FALSE),0) -> 0 | H30: 30
A31: 80301021 | B31: 0301021 | C31: Fibrinógeno | D31: 0 | E31: =IFERROR(VLOOKUP($A31,Filtro!$A$5:$I$351,3,FALSE),0) -> 0 | F31: =IFERROR(VLOOKUP($A31,Filtro!$A$5:$I$351,4,FALSE),0) -> 0 | G31: =IFERROR(VLOOKUP($A31,Filtro!$A$5:$I$351,5,FALSE),0) -> 0 | H31: 31
A32: 80301022 | B32: 0301022 | C32: Test de neutralización plaquetaria | D32: 0 | E32: =IFERROR(VLOOKUP($A32,Filtro!$A$5:$I$351,3,FALSE),0) -> 0 | F32: =IFERROR(VLOOKUP($A32,Filtro!$A$5:$I$351,4,FALSE),0) -> 0 | G32: =IFERROR(VLOOKUP($A32,Filtro!$A$5:$I$351,5,FALSE),0) -> 0 | H32: 32
A33: 80301023 | B33: 0301023 | C33: Factor III plaquetario | D33: 0 | E33: =IFERROR(VLOOKUP($A33,Filtro!$A$5:$I$351,3,FALSE),0) -> 0 | F33: =IFERROR(VLOOKUP($A33,Filtro!$A$5:$I$351,4,FALSE),0) -> 0 | G33: =IFERROR(VLOOKUP($A33,Filtro!$A$5:$I$351,5,FALSE),0) -> 0 | H33: 33
A34: 80301024 | B34: 0301024 | C34: Factor V | D34: 0 | E34: =IFERROR(VLOOKUP($A34,Filtro!$A$5:$I$351,3,FALSE),0) -> 0 | F34: =IFERROR(VLOOKUP($A34,Filtro!$A$5:$I$351,4,FALSE),0) -> 0 | G34: =IFERROR(VLOOKUP($A34,Filtro!$A$5:$I$351,5,FALSE),0) -> 0 | H34: 34
A35: 80301025 | B35: 0301025 | C35: Factores VII, VIII, IX, X, XI, XII, XIII, c/u | D35: 0 | E35: =IFERROR(VLOOKUP($A35,Filtro!$A$5:$I$351,3,FALSE),0) -> 0 | F35: =IFERROR(VLOOKUP($A35,Filtro!$A$5:$I$351,4,FALSE),0) -> 0 | G35: =IFERROR(VLOOKUP($A35,Filtro!$A$5:$I$351,5,FALSE),0) -> 0 | H35: 35
A36: 80301026 | B36: 0301026 | C36: Ferritina | D36: 0 | E36: =IFERROR(VLOOKUP($A36,Filtro!$A$5:$I$351,3,FALSE),0) -> 0 | F36: =IFERROR(VLOOKUP($A36,Filtro!$A$5:$I$351,4,FALSE),0) -> 0 | G36: =IFERROR(VLOOKUP($A36,Filtro!$A$5:$I$351,5,FALSE),0) -> 1,768 | H36: 36
A37: 80301027 | B37: 0301027 | C37: Fibrinógeno, productos de degradación del | D37: 0 | E37: =IFERROR(VLOOKUP($A37,Filtro!$A$5:$I$351,3,FALSE),0) -> 0 | F37: =IFERROR(VLOOKUP($A37,Filtro!$A$5:$I$351,4,FALSE),0) -> 0 | G37: =IFERROR(VLOOKUP($A37,Filtro!$A$5:$I$351,5,FALSE),0) -> 0 | H37: 37
A38: 80301028 | B38: 0301028 | C38: Fierro sérico | D38: 0 | E38: =IFERROR(VLOOKUP($A38,Filtro!$A$5:$I$351,3,FALSE),0) -> 0 | F38: =IFERROR(VLOOKUP($A38,Filtro!$A$5:$I$351,4,FALSE),0) -> 0 | G38: =IFERROR(VLOOKUP($A38,Filtro!$A$5:$I$351,5,FALSE),0) -> 2 | H38: 38
A39: 80301029 | B39: 0301029 | C39: Fierro, capacidad de fijación del (incluye fierro sérico) | D39: 0 | E39: =IFERROR(VLOOKUP($A39,Filtro!$A$5:$I$351,3,FALSE),0) -> 0 | F39: =IFERROR(VLOOKUP($A39,Filtro!$A$5:$I$351,4,FALSE),0) -> 0 | G39: =IFERROR(VLOOKUP($A39,Filtro!$A$5:$I$351,5,FALSE),0) -> 0 | H39: 39
A40: 80301030 | B40: 0301030 | C40: Fierro, cinética del (cada determinación) | D40: 0 | E40: =IFERROR(VLOOKUP($A40,Filtro!$A$5:$I$351,3,FALSE),0) -> 0 | F40: =IFERROR(VLOOKUP($A40,Filtro!$A$5:$I$351,4,FALSE),0) -> 0 | G40: =IFERROR(VLOOKUP($A40,Filtro!$A$5:$I$351,5,FALSE),0) -> 1 | H40: 40
A41: 80301032 | B41: 0301032 | C41: Gelación por etanol | D41: 0 | E41: =IFERROR(VLOOKUP($A41,Filtro!$A$5:$I$351,3,FALSE),0) -> 0 | F41: =IFERROR(VLOOKUP($A41,Filtro!$A$5:$I$351,4,FALSE),0) -> 0 | G41: =IFERROR(VLOOKUP($A41,Filtro!$A$5:$I$351,5,FALSE),0) -> 0 | H41: 41
A42: 80301033 | B42: 0301033 | C42: Grupos menores. Tipificación o determinación de otros sistemas sanguíneos (Kell, Duffy, Kidd y otros) c/u. | D42: 0 | E42: =IFERROR(VLOOKUP($A42,Filtro!$A$5:$I$351,3,FALSE),0) -> 0 | F42: =IFERROR(VLOOKUP($A42,Filtro!$A$5:$I$351,4,FALSE),0) -> 0 | G42: =IFERROR(VLOOKUP($A42,Filtro!$A$5:$I$351,5,FALSE),0) -> 0 | H42: 42
A43: 80301034 | B43: 0301034 | C43: Grupos sanguíneos AB0 y Rho (incluye estudio de factor Du en Rh negativos) | D43: 1,221 | E43: =IFERROR(VLOOKUP($A43,Filtro!$A$5:$I$351,3,FALSE),0) -> 0 | F43: =IFERROR(VLOOKUP($A43,Filtro!$A$5:$I$351,4,FALSE),0) -> 1,221 | G43: =IFERROR(VLOOKUP($A43,Filtro!$A$5:$I$351,5,FALSE),0) -> 2,515 | H43: 43
A44: 80301035 | B44: 0301035 | C44: Haptoglobina cuantitativa | D44: 0 | E44: =IFERROR(VLOOKUP($A44,Filtro!$A$5:$I$351,3,FALSE),0) -> 0 | F44: =IFERROR(VLOOKUP($A44,Filtro!$A$5:$I$351,4,FALSE),0) -> 0 | G44: =IFERROR(VLOOKUP($A44,Filtro!$A$5:$I$351,5,FALSE),0) -> 151 | H44: 44
A45: 80301036 | B45: 0301036 | C45: Hematocrito (proc. aut.) | D45: 2,660 | E45: =IFERROR(VLOOKUP($A45,Filtro!$A$5:$I$351,3,FALSE),0) -> 0 | F45: =IFERROR(VLOOKUP($A45,Filtro!$A$5:$I$351,4,FALSE),0) -> 2,660 | G45: =IFERROR(VLOOKUP($A45,Filtro!$A$5:$I$351,5,FALSE),0) -> 38,642 | H45: 45
A46: 80301038 | B46: 0301038 | C46: Hemoglobina en sangre total (proc. aut.) | D46: 1,447 | E46: =IFERROR(VLOOKUP($A46,Filtro!$A$5:$I$351,3,FALSE),0) -> 0 | F46: =IFERROR(VLOOKUP($A46,Filtro!$A$5:$I$351,4,FALSE),0) -> 1,447 | G46: =IFERROR(VLOOKUP($A46,Filtro!$A$5:$I$351,5,FALSE),0) -> 35,779 | H46: 46
A47: 80301039 | B47: 0301039 | C47: Hemoglobina fetal cualitativa | D47: 0 | E47: =IFERROR(VLOOKUP($A47,Filtro!$A$5:$I$351,3,FALSE),0) -> 0 | F47: =IFERROR(VLOOKUP($A47,Filtro!$A$5:$I$351,4,FALSE),0) -> 0 | G47: =IFERROR(VLOOKUP($A47,Filtro!$A$5:$I$351,5,FALSE),0) -> 145 | H47: 47
A48: 80301040 | B48: 0301040 | C48: Hemoglobina fetal cuantitativa en eritrocitos | D48: 0 | E48: =IFERROR(VLOOKUP($A48,Filtro!$A$5:$I$351,3,FALSE),0) -> 0 | F48: =IFERROR(VLOOKUP($A48,Filtro!$A$5:$I$351,4,FALSE),0) -> 0 | G48: =IFERROR(VLOOKUP($A48,Filtro!$A$5:$I$351,5,FALSE),0) -> 9 | H48: 48
A49: 80301041 | B49: 0301041 | C49: Hemoglobina glicosilada | D49: 22,862 | E49: =IFERROR(VLOOKUP($A49,Filtro!$A$5:$I$351,3,FALSE),0) -> 0 | F49: =IFERROR(VLOOKUP($A49,Filtro!$A$5:$I$351,4,FALSE),0) -> 22,862 | G49: =IFERROR(VLOOKUP($A49,Filtro!$A$5:$I$351,5,FALSE),0) -> 52,772 | H49: 49
A50: 80301042 | B50: 0301042 | C50: Hemoglobina plasmática | D50: 0 | E50: =IFERROR(VLOOKUP($A50,Filtro!$A$5:$I$351,3,FALSE),0) -> 0 | F50: =IFERROR(VLOOKUP($A50,Filtro!$A$5:$I$351,4,FALSE),0) -> 0 | G50: =IFERROR(VLOOKUP($A50,Filtro!$A$5:$I$351,5,FALSE),0) -> 267 | H50: 50
A51: 80301043 | B51: 0301043 | C51: Hemoglobina termolabil | D51: 0 | E51: =IFERROR(VLOOKUP($A51,Filtro!$A$5:$I$351,3,FALSE),0) -> 0 | F51: =IFERROR(VLOOKUP($A51,Filtro!$A$5:$I$351,4,FALSE),0) -> 0 | G51: =IFERROR(VLOOKUP($A51,Filtro!$A$5:$I$351,5,FALSE),0) -> 29 | H51: 51
A52: 80301044 | B52: 0301044 | C52: Hemoglobina, electroforesis de (incluye Hb. total) | D52: 0 | E52: =IFERROR(VLOOKUP($A52,Filtro!$A$5:$I$351,3,FALSE),0) -> 0 | F52: =IFERROR(VLOOKUP($A52,Filtro!$A$5:$I$351,4,FALSE),0) -> 0 | G52: =IFERROR(VLOOKUP($A52,Filtro!$A$5:$I$351,5,FALSE),0) -> 18 | H52: 52
A53: 80301045 | B53: 0301045 | C53: Hemograma (incluye recuentos de leucocitos y eritrocitos, hemoglobina, hematocrito, fórmula leucocitaria, características de los elementos figurados y velocidad de eritrosedimentación) | D53: 37,243 | E53: =IFERROR(VLOOKUP($A53,Filtro!$A$5:$I$351,3,FALSE),0) -> 0 | F53: =IFERROR(VLOOKUP($A53,Filtro!$A$5:$I$351,4,FALSE),0) -> 37,243 | G53: =IFERROR(VLOOKUP($A53,Filtro!$A$5:$I$351,5,FALSE),0) -> 67,752 | H53: 53
A54: 80301046 | B54: 0301046 | C54: Hemolisinas | D54: 0 | E54: =IFERROR(VLOOKUP($A54,Filtro!$A$5:$I$351,3,FALSE),0) -> 0 | F54: =IFERROR(VLOOKUP($A54,Filtro!$A$5:$I$351,4,FALSE),0) -> 0 | G54: =IFERROR(VLOOKUP($A54,Filtro!$A$5:$I$351,5,FALSE),0) -> 0 | H54: 54
A55: 80301047 | B55: 0301047 | C55: Hemólisis con sucrosa, test de | D55: 0 | E55: =IFERROR(VLOOKUP($A55,Filtro!$A$5:$I$351,3,FALSE),0) -> 0 | F55: =IFERROR(VLOOKUP($A55,Filtro!$A$5:$I$351,4,FALSE),0) -> 0 | G55: =IFERROR(VLOOKUP($A55,Filtro!$A$5:$I$351,5,FALSE),0) -> 0 | H55: 55
A56: 80301048 | B56: 0301048 | C56: Hemosiderina medular | D56: 0 | E56: =IFERROR(VLOOKUP($A56,Filtro!$A$5:$I$351,3,FALSE),0) -> 0 | F56: =IFERROR(VLOOKUP($A56,Filtro!$A$5:$I$351,4,FALSE),0) -> 0 | G56: =IFERROR(VLOOKUP($A56,Filtro!$A$5:$I$351,5,FALSE),0) -> 0 | H56: 56
A57: 80301049 | B57: 0301049 | C57: Heparina, cuantificación de | D57: 0 | E57: =IFERROR(VLOOKUP($A57,Filtro!$A$5:$I$351,3,FALSE),0) -> 0 | F57: =IFERROR(VLOOKUP($A57,Filtro!$A$5:$I$351,4,FALSE),0) -> 0 | G57: =IFERROR(VLOOKUP($A57,Filtro!$A$5:$I$351,5,FALSE),0) -> 0 | H57: 57
A58: 80301050 | B58: 0301050 | C58: Isoinmunización, detección de anticuerpos irregulares (proc. aut.). | D58: 0 | E58: =IFERROR(VLOOKUP($A58,Filtro!$A$5:$I$351,3,FALSE),0) -> 0 | F58: =IFERROR(VLOOKUP($A58,Filtro!$A$5:$I$351,4,FALSE),0) -> 0 | G58: =IFERROR(VLOOKUP($A58,Filtro!$A$5:$I$351,5,FALSE),0) -> 0 | H58: 58
A59: 80301051 | B59: 0301051 | C59: Isoinmunización, detección e identificación de anticuerpos | D59: 0 | E59: =IFERROR(VLOOKUP($A59,Filtro!$A$5:$I$351,3,FALSE),0) -> 0 | F59: =IFERROR(VLOOKUP($A59,Filtro!$A$5:$I$351,4,FALSE),0) -> 0 | G59: =IFERROR(VLOOKUP($A59,Filtro!$A$5:$I$351,5,FALSE),0) -> 0 | H59: 59
A60: 80301052 | B60: 0301052 | C60: Isopropanol, test de | D60: 0 | E60: =IFERROR(VLOOKUP($A60,Filtro!$A$5:$I$351,3,FALSE),0) -> 0 | F60: =IFERROR(VLOOKUP($A60,Filtro!$A$5:$I$351,4,FALSE),0) -> 0 | G60: =IFERROR(VLOOKUP($A60,Filtro!$A$5:$I$351,5,FALSE),0) -> 0 | H60: 60
A61: 80301053 | B61: 0301053 | C61: Metahemalbúmina | D61: 0 | E61: =IFERROR(VLOOKUP($A61,Filtro!$A$5:$I$351,3,FALSE),0) -> 0 | F61: =IFERROR(VLOOKUP($A61,Filtro!$A$5:$I$351,4,FALSE),0) -> 0 | G61: =IFERROR(VLOOKUP($A61,Filtro!$A$5:$I$351,5,FALSE),0) -> 0 | H61: 61
A62: 80301054 | B62: 0301054 | C62: Metahemoglobina | D62: 0 | E62: =IFERROR(VLOOKUP($A62,Filtro!$A$5:$I$351,3,FALSE),0) -> 0 | F62: =IFERROR(VLOOKUP($A62,Filtro!$A$5:$I$351,4,FALSE),0) -> 0 | G62: =IFERROR(VLOOKUP($A62,Filtro!$A$5:$I$351,5,FALSE),0) -> 0 | H62: 62
A63: 80301055 | B63: 0301055 | C63: Muraminidasa en eritrocitos | D63: 0 | E63: =IFERROR(VLOOKUP($A63,Filtro!$A$5:$I$351,3,FALSE),0) -> 0 | F63: =IFERROR(VLOOKUP($A63,Filtro!$A$5:$I$351,4,FALSE),0) -> 0 | G63: =IFERROR(VLOOKUP($A63,Filtro!$A$5:$I$351,5,FALSE),0) -> 0 | H63: 63
A64: 80301056 | B64: 0301056 | C64: Piruvatoquinasa en eritrocitos | D64: 0 | E64: =IFERROR(VLOOKUP($A64,Filtro!$A$5:$I$351,3,FALSE),0) -> 0 | F64: =IFERROR(VLOOKUP($A64,Filtro!$A$5:$I$351,4,FALSE),0) -> 0 | G64: =IFERROR(VLOOKUP($A64,Filtro!$A$5:$I$351,5,FALSE),0) -> 0 | H64: 64
A65: 80301057 | B65: 0301057 | C65: Protamina sulfato, determinación de | D65: 0 | E65: =IFERROR(VLOOKUP($A65,Filtro!$A$5:$I$351,3,FALSE),0) -> 0 | F65: =IFERROR(VLOOKUP($A65,Filtro!$A$5:$I$351,4,FALSE),0) -> 0 | G65: =IFERROR(VLOOKUP($A65,Filtro!$A$5:$I$351,5,FALSE),0) -> 0 | H65: 65
A66: 80301058 | B66: 0301058 | C66: Protoporfirinas en eritrocitos | D66: 0 | E66: =IFERROR(VLOOKUP($A66,Filtro!$A$5:$I$351,3,FALSE),0) -> 0 | F66: =IFERROR(VLOOKUP($A66,Filtro!$A$5:$I$351,4,FALSE),0) -> 0 | G66: =IFERROR(VLOOKUP($A66,Filtro!$A$5:$I$351,5,FALSE),0) -> 63 | H66: 66
A67: 80301059 | B67: 0301059 | C67: Protrombina, tiempo de o consumo de (incluye INR, Relación Internacional Normalizada) | D67: 2,558 | E67: =IFERROR(VLOOKUP($A67,Filtro!$A$5:$I$351,3,FALSE),0) -> 0 | F67: =IFERROR(VLOOKUP($A67,Filtro!$A$5:$I$351,4,FALSE),0) -> 2,558 | G67: =IFERROR(VLOOKUP($A67,Filtro!$A$5:$I$351,5,FALSE),0) -> 3,446 | H67: 67
A68: 80301062 | B68: 0301062 | C68: Recuento de basófilos (absoluto) | D68: 0 | E68: =IFERROR(VLOOKUP($A68,Filtro!$A$5:$I$351,3,FALSE),0) -> 0 | F68: =IFERROR(VLOOKUP($A68,Filtro!$A$5:$I$351,4,FALSE),0) -> 0 | G68: =IFERROR(VLOOKUP($A68,Filtro!$A$5:$I$351,5,FALSE),0) -> 0 | H68: 68
A69: 80301063 | B69: 0301063 | C69: Recuento de eosinófilos (absoluto) | D69: 0 | E69: =IFERROR(VLOOKUP($A69,Filtro!$A$5:$I$351,3,FALSE),0) -> 0 | F69: =IFERROR(VLOOKUP($A69,Filtro!$A$5:$I$351,4,FALSE),0) -> 0 | G69: =IFERROR(VLOOKUP($A69,Filtro!$A$5:$I$351,5,FALSE),0) -> 0 | H69: 69
A70: 80301064 | B70: 0301064 | C70: Recuento de eritrocitos, absoluto (proc. aut.) | D70: 0 | E70: =IFERROR(VLOOKUP($A70,Filtro!$A$5:$I$351,3,FALSE),0) -> 0 | F70: =IFERROR(VLOOKUP($A70,Filtro!$A$5:$I$351,4,FALSE),0) -> 0 | G70: =IFERROR(VLOOKUP($A70,Filtro!$A$5:$I$351,5,FALSE),0) -> 0 | H70: 70
A71: 80301065 | B71: 0301065 | C71: Recuento de leucocitos, absoluto (proc. aut.) | D71: 25 | E71: =IFERROR(VLOOKUP($A71,Filtro!$A$5:$I$351,3,FALSE),0) -> 0 | F71: =IFERROR(VLOOKUP($A71,Filtro!$A$5:$I$351,4,FALSE),0) -> 25 | G71: =IFERROR(VLOOKUP($A71,Filtro!$A$5:$I$351,5,FALSE),0) -> 26 | H71: 71
A72: 80301066 | B72: 0301066 | C72: Recuento de linfocitos (absoluto) | D72: 0 | E72: =IFERROR(VLOOKUP($A72,Filtro!$A$5:$I$351,3,FALSE),0) -> 0 | F72: =IFERROR(VLOOKUP($A72,Filtro!$A$5:$I$351,4,FALSE),0) -> 0 | G72: =IFERROR(VLOOKUP($A72,Filtro!$A$5:$I$351,5,FALSE),0) -> 0 | H72: 72
A73: 80301067 | B73: 0301067 | C73: Recuento de plaquetas (absoluto) | D73: 196 | E73: =IFERROR(VLOOKUP($A73,Filtro!$A$5:$I$351,3,FALSE),0) -> 0 | F73: =IFERROR(VLOOKUP($A73,Filtro!$A$5:$I$351,4,FALSE),0) -> 196 | G73: =IFERROR(VLOOKUP($A73,Filtro!$A$5:$I$351,5,FALSE),0) -> 42 | H73: 73
A74: 80301068 | B74: 0301068 | C74: Recuento de reticulocitos (absoluto o porcentual) | D74: 0 | E74: =IFERROR(VLOOKUP($A74,Filtro!$A$5:$I$351,3,FALSE),0) -> 0 | F74: =IFERROR(VLOOKUP($A74,Filtro!$A$5:$I$351,4,FALSE),0) -> 0 | G74: =IFERROR(VLOOKUP($A74,Filtro!$A$5:$I$351,5,FALSE),0) -> 9 | H74: 74
A75: 80301069 | B75: 0301069 | C75: Recuento diferencial o fórmula leucocitaria (proc. aut.) | D75: 0 | E75: =IFERROR(VLOOKUP($A75,Filtro!$A$5:$I$351,3,FALSE),0) -> 0 | F75: =IFERROR(VLOOKUP($A75,Filtro!$A$5:$I$351,4,FALSE),0) -> 0 | G75: =IFERROR(VLOOKUP($A75,Filtro!$A$5:$I$351,5,FALSE),0) -> 0 | H75: 75
A76: 80301070 | B76: 0301070 | C76: Resistencia globular osmótica | D76: 0 | E76: =IFERROR(VLOOKUP($A76,Filtro!$A$5:$I$351,3,FALSE),0) -> 0 | F76: =IFERROR(VLOOKUP($A76,Filtro!$A$5:$I$351,4,FALSE),0) -> 0 | G76: =IFERROR(VLOOKUP($A76,Filtro!$A$5:$I$351,5,FALSE),0) -> 0 | H76: 76
A77: 80301071 | B77: 0301071 | C77: Sacarosa, prueba de la | D77: 0 | E77: =IFERROR(VLOOKUP($A77,Filtro!$A$5:$I$351,3,FALSE),0) -> 0 | F77: =IFERROR(VLOOKUP($A77,Filtro!$A$5:$I$351,4,FALSE),0) -> 0 | G77: =IFERROR(VLOOKUP($A77,Filtro!$A$5:$I$351,5,FALSE),0) -> 0 | H77: 77
A78: 80301072 | B78: 0301072 | C78: Sangría, tiempo de (Ivy) (no incluye dispositivo asociado ) | D78: =SUM(E78:F78) -> 31 | E78: =IFERROR(VLOOKUP($A78,Filtro!$A$5:$I$351,3,FALSE),0) -> 0 | F78: =IFERROR(VLOOKUP($A78,Filtro!$A$5:$I$351,4,FALSE),0) -> 31 | G78: =IFERROR(VLOOKUP($A78,Filtro!$A$5:$I$351,5,FALSE),0) -> 0 | H78: 78
A79: 80301074 | B79: 0301074 | C79: Sobrevida del eritrocito (Cr 51 o similar) | D79: 0 | E79: =IFERROR(VLOOKUP($A79,Filtro!$A$5:$I$351,3,FALSE),0) -> 0 | F79: =IFERROR(VLOOKUP($A79,Filtro!$A$5:$I$351,4,FALSE),0) -> 0 | G79: =IFERROR(VLOOKUP($A79,Filtro!$A$5:$I$351,5,FALSE),0) -> 0 | H79: 79
A80: 80301075 | B80: 0301075 | C80: Subgrupo ABO y Rh fenotipo - genotipo Rh, c/u | D80: 0 | E80: =IFERROR(VLOOKUP($A80,Filtro!$A$5:$I$351,3,FALSE),0) -> 0 | F80: =IFERROR(VLOOKUP($A80,Filtro!$A$5:$I$351,4,FALSE),0) -> 0 | G80: =IFERROR(VLOOKUP($A80,Filtro!$A$5:$I$351,5,FALSE),0) -> 137 | H80: 80
A81: 80301076 | B81: 0301076 | C81: Thorn, prueba de (no incluye ACTH) | D81: 0 | E81: =IFERROR(VLOOKUP($A81,Filtro!$A$5:$I$351,3,FALSE),0) -> 0 | F81: =IFERROR(VLOOKUP($A81,Filtro!$A$5:$I$351,4,FALSE),0) -> 0 | G81: =IFERROR(VLOOKUP($A81,Filtro!$A$5:$I$351,5,FALSE),0) -> 0 | H81: 81
A82: 80301077 | B82: 0301077 | C82: Tinción de estearasa | D82: 0 | E82: =IFERROR(VLOOKUP($A82,Filtro!$A$5:$I$351,3,FALSE),0) -> 0 | F82: =IFERROR(VLOOKUP($A82,Filtro!$A$5:$I$351,4,FALSE),0) -> 0 | G82: =IFERROR(VLOOKUP($A82,Filtro!$A$5:$I$351,5,FALSE),0) -> 5 | H82: 82
A83: 80301078 | B83: 0301078 | C83: Tinción de fosfatasas alcalinas o ácidas | D83: 0 | E83: =IFERROR(VLOOKUP($A83,Filtro!$A$5:$I$351,3,FALSE),0) -> 0 | F83: =IFERROR(VLOOKUP($A83,Filtro!$A$5:$I$351,4,FALSE),0) -> 0 | G83: =IFERROR(VLOOKUP($A83,Filtro!$A$5:$I$351,5,FALSE),0) -> 18 | H83: 83
A84: 80301079 | B84: 0301079 | C84: Tinción de glicógeno o PAS | D84: 0 | E84: =IFERROR(VLOOKUP($A84,Filtro!$A$5:$I$351,3,FALSE),0) -> 0 | F84: =IFERROR(VLOOKUP($A84,Filtro!$A$5:$I$351,4,FALSE),0) -> 0 | G84: =IFERROR(VLOOKUP($A84,Filtro!$A$5:$I$351,5,FALSE),0) -> 0 | H84: 84
A85: 80301080 | B85: 0301080 | C85: Tinción de lípidos | D85: 0 | E85: =IFERROR(VLOOKUP($A85,Filtro!$A$5:$I$351,3,FALSE),0) -> 0 | F85: =IFERROR(VLOOKUP($A85,Filtro!$A$5:$I$351,4,FALSE),0) -> 0 | G85: =IFERROR(VLOOKUP($A85,Filtro!$A$5:$I$351,5,FALSE),0) -> 0 | H85: 85
A86: 80301081 | B86: 0301081 | C86: Tinción de peroxidasas | D86: 0 | E86: =IFERROR(VLOOKUP($A86,Filtro!$A$5:$I$351,3,FALSE),0) -> 0 | F86: =IFERROR(VLOOKUP($A86,Filtro!$A$5:$I$351,4,FALSE),0) -> 0 | G86: =IFERROR(VLOOKUP($A86,Filtro!$A$5:$I$351,5,FALSE),0) -> 0 | H86: 86
A87: 80301082 | B87: 0301082 | C87: Transferrina | D87: 0 | E87: =IFERROR(VLOOKUP($A87,Filtro!$A$5:$I$351,3,FALSE),0) -> 0 | F87: =IFERROR(VLOOKUP($A87,Filtro!$A$5:$I$351,4,FALSE),0) -> 0 | G87: =IFERROR(VLOOKUP($A87,Filtro!$A$5:$I$351,5,FALSE),0) -> 0 | H87: 87
A88: 80301083 | B88: 0301083 | C88: Trombina, tiempo de | D88: 0 | E88: =IFERROR(VLOOKUP($A88,Filtro!$A$5:$I$351,3,FALSE),0) -> 0 | F88: =IFERROR(VLOOKUP($A88,Filtro!$A$5:$I$351,4,FALSE),0) -> 0 | G88: =IFERROR(VLOOKUP($A88,Filtro!$A$5:$I$351,5,FALSE),0) -> 274 | H88: 88
A89: 80301085 | B89: 0301085 | C89: Tromboplastina, tiempo parcial de (TTPA, TTPK o similares) | D89: 914 | E89: =IFERROR(VLOOKUP($A89,Filtro!$A$5:$I$351,3,FALSE),0) -> 0 | F89: =IFERROR(VLOOKUP($A89,Filtro!$A$5:$I$351,4,FALSE),0) -> 914 | G89: =IFERROR(VLOOKUP($A89,Filtro!$A$5:$I$351,5,FALSE),0) -> 1,914 | H89: 89
A90: 80301086 | B90: 0301086 | C90: Velocidad de eritrosedimentación (proc. aut.) | D90: 9,960 | E90: =IFERROR(VLOOKUP($A90,Filtro!$A$5:$I$351,3,FALSE),0) -> 0 | F90: =IFERROR(VLOOKUP($A90,Filtro!$A$5:$I$351,4,FALSE),0) -> 9,960 | G90: =IFERROR(VLOOKUP($A90,Filtro!$A$5:$I$351,5,FALSE),0) -> 2,161 | H90: 90
A91: 80301087 | B91: 0301087 | C91: Vitamina B12, absorción de (Co 57 o similar) | D91: 50 | E91: =IFERROR(VLOOKUP($A91,Filtro!$A$5:$I$351,3,FALSE),0) -> 0 | F91: =IFERROR(VLOOKUP($A91,Filtro!$A$5:$I$351,4,FALSE),0) -> 50 | G91: =IFERROR(VLOOKUP($A91,Filtro!$A$5:$I$351,5,FALSE),0) -> 2,632 | H91: 91
A92: 80301088 | B92: 0301088 | C92: Volemia (incluye volumen globular total, volumen plasmático total y volumen sanguíneo total) | D92: 0 | E92: =IFERROR(VLOOKUP($A92,Filtro!$A$5:$I$351,3,FALSE),0) -> 0 | F92: =IFERROR(VLOOKUP($A92,Filtro!$A$5:$I$351,4,FALSE),0) -> 0 | G92: =IFERROR(VLOOKUP($A92,Filtro!$A$5:$I$351,5,FALSE),0) -> 0 | H92: 92
A93: 80301089 | B93: 0301089 | C93: Von Willebrand, Ag de (factor VIII Ag.) | D93: 0 | E93: =IFERROR(VLOOKUP($A93,Filtro!$A$5:$I$351,3,FALSE),0) -> 0 | F93: =IFERROR(VLOOKUP($A93,Filtro!$A$5:$I$351,4,FALSE),0) -> 0 | G93: =IFERROR(VLOOKUP($A93,Filtro!$A$5:$I$351,5,FALSE),0) -> 0 | H93: 93
A94: 80301090 | B94: 0301090 | C94: Cofactor de Ristocetina | D94: 0 | E94: =IFERROR(VLOOKUP($A94,Filtro!$A$5:$I$351,3,FALSE),0) -> 0 | F94: =IFERROR(VLOOKUP($A94,Filtro!$A$5:$I$351,4,FALSE),0) -> 0 | G94: =IFERROR(VLOOKUP($A94,Filtro!$A$5:$I$351,5,FALSE),0) -> 0 | H94: 94
A95: 80301091 | B95: 0301091 | C95: Proteína C | D95: 0 | E95: =IFERROR(VLOOKUP($A95,Filtro!$A$5:$I$351,3,FALSE),0) -> 0 | F95: =IFERROR(VLOOKUP($A95,Filtro!$A$5:$I$351,4,FALSE),0) -> 0 | G95: =IFERROR(VLOOKUP($A95,Filtro!$A$5:$I$351,5,FALSE),0) -> 0 | H95: 95
A96: 80301092 | B96: 0301092 | C96: Proteína S | D96: 0 | E96: =IFERROR(VLOOKUP($A96,Filtro!$A$5:$I$351,3,FALSE),0) -> 0 | F96: =IFERROR(VLOOKUP($A96,Filtro!$A$5:$I$351,4,FALSE),0) -> 0 | G96: =IFERROR(VLOOKUP($A96,Filtro!$A$5:$I$351,5,FALSE),0) -> 0 | H96: 96
A97: 80301093 | B97: 0301093 | C97: Resistencia Proteína C | D97: 0 | E97: =IFERROR(VLOOKUP($A97,Filtro!$A$5:$I$351,3,FALSE),0) -> 0 | F97: =IFERROR(VLOOKUP($A97,Filtro!$A$5:$I$351,4,FALSE),0) -> 0 | G97: =IFERROR(VLOOKUP($A97,Filtro!$A$5:$I$351,5,FALSE),0) -> 0 | H97: 97
B98: TOTAL | D98: =SUM(D13:D97) -> 79,169 | E98: =SUM(E13:E97) -> 0 | F98: =SUM(F13:F97) -> 79,169 | G98: =SUM(G13:G97) -> 212,425 | H98: 98
H99: 99
B100: SANGRE BIOQUÍMICO | H100: 100
A101: 80302001 | B101: 0302001 | C101: Acetona cualitativa | D101: =SUM(E101:F101) -> 0 | E101: =IFERROR(VLOOKUP($A101,Filtro!$A$5:$I$351,3,FALSE),0) -> 0 | F101: =IFERROR(VLOOKUP($A101,Filtro!$A$5:$I$351,4,FALSE),0) -> 0 | G101: =IFERROR(VLOOKUP($A101,Filtro!$A$5:$I$351,5,FALSE),0) -> 0 | H101: 101
A102: 80302002 | B102: 0302002 | C102: Acido cítrico | D102: 0 | E102: =IFERROR(VLOOKUP($A102,Filtro!$A$5:$I$351,3,FALSE),0) -> 0 | F102: =IFERROR(VLOOKUP($A102,Filtro!$A$5:$I$351,4,FALSE),0) -> 0 | G102: =IFERROR(VLOOKUP($A102,Filtro!$A$5:$I$351,5,FALSE),0) -> 0 | H102: 102
A103: 80302004 | B103: 0302004 | C103: Acido láctico | D103: 0 | E103: =IFERROR(VLOOKUP($A103,Filtro!$A$5:$I$351,3,FALSE),0) -> 0 | F103: =IFERROR(VLOOKUP($A103,Filtro!$A$5:$I$351,4,FALSE),0) -> 0 | G103: =IFERROR(VLOOKUP($A103,Filtro!$A$5:$I$351,5,FALSE),0) -> 104 | H103: 103
A104: 80302005 | B104: 0302005 | C104: Acido úrico, en sangre | D104: 23,980 | E104: =IFERROR(VLOOKUP($A104,Filtro!$A$5:$I$351,3,FALSE),0) -> 0 | F104: =IFERROR(VLOOKUP($A104,Filtro!$A$5:$I$351,4,FALSE),0) -> 23,980 | G104: =IFERROR(VLOOKUP($A104,Filtro!$A$5:$I$351,5,FALSE),0) -> 42,283 | H104: 104
A105: 80302006 | B105: 0302006 | C105: Alcohol etílico | D105: 0 | E105: =IFERROR(VLOOKUP($A105,Filtro!$A$5:$I$351,3,FALSE),0) -> 0 | F105: =IFERROR(VLOOKUP($A105,Filtro!$A$5:$I$351,4,FALSE),0) -> 0 | G105: =IFERROR(VLOOKUP($A105,Filtro!$A$5:$I$351,5,FALSE),0) -> 0 | H105: 105
A106: 80302007 | B106: 0302007 | C106: Aldolasa | D106: 0 | E106: =IFERROR(VLOOKUP($A106,Filtro!$A$5:$I$351,3,FALSE),0) -> 0 | F106: =IFERROR(VLOOKUP($A106,Filtro!$A$5:$I$351,4,FALSE),0) -> 0 | G106: =IFERROR(VLOOKUP($A106,Filtro!$A$5:$I$351,5,FALSE),0) -> 0 | H106: 106
A107: 80302008 | B107: 0302008 | C107: Amilasa, en sangre | D107: 0 | E107: =IFERROR(VLOOKUP($A107,Filtro!$A$5:$I$351,3,FALSE),0) -> 0 | F107: =IFERROR(VLOOKUP($A107,Filtro!$A$5:$I$351,4,FALSE),0) -> 0 | G107: =IFERROR(VLOOKUP($A107,Filtro!$A$5:$I$351,5,FALSE),0) -> 84 | H107: 107
A108: 80302009 | B108: 0302009 | C108: Aminoácidos, cualitativo en sangre | D108: 0 | E108: =IFERROR(VLOOKUP($A108,Filtro!$A$5:$I$351,3,FALSE),0) -> 0 | F108: =IFERROR(VLOOKUP($A108,Filtro!$A$5:$I$351,4,FALSE),0) -> 0 | G108: =IFERROR(VLOOKUP($A108,Filtro!$A$5:$I$351,5,FALSE),0) -> 0 | H108: 108
A109: 80302010 | B109: 0302010 | C109: Amonio | D109: 0 | E109: =IFERROR(VLOOKUP($A109,Filtro!$A$5:$I$351,3,FALSE),0) -> 0 | F109: =IFERROR(VLOOKUP($A109,Filtro!$A$5:$I$351,4,FALSE),0) -> 0 | G109: =IFERROR(VLOOKUP($A109,Filtro!$A$5:$I$351,5,FALSE),0) -> 0 | H109: 109
A110: 80302070 | B110: 0302070 | C110: Apolipoproteínas (A1, B u otras) | D110: 0 | E110: =IFERROR(VLOOKUP($A110,Filtro!$A$5:$I$351,3,FALSE),0) -> 0 | F110: =IFERROR(VLOOKUP($A110,Filtro!$A$5:$I$351,4,FALSE),0) -> 0 | G110: =IFERROR(VLOOKUP($A110,Filtro!$A$5:$I$351,5,FALSE),0) -> 0 | H110: 110
A111: 80302011 | B111: 0302011 | C111: Bicarbonato (proc. aut.) | D111: 0 | E111: =IFERROR(VLOOKUP($A111,Filtro!$A$5:$I$351,3,FALSE),0) -> 0 | F111: =IFERROR(VLOOKUP($A111,Filtro!$A$5:$I$351,4,FALSE),0) -> 0 | G111: =IFERROR(VLOOKUP($A111,Filtro!$A$5:$I$351,5,FALSE),0) -> 0 | H111: 111
A112: 80302012 | B112: 0302012 | C112: Bilirrubina total (proc. aut.) | D112: 183 | E112: =IFERROR(VLOOKUP($A112,Filtro!$A$5:$I$351,3,FALSE),0) -> 0 | F112: =IFERROR(VLOOKUP($A112,Filtro!$A$5:$I$351,4,FALSE),0) -> 183 | G112: =IFERROR(VLOOKUP($A112,Filtro!$A$5:$I$351,5,FALSE),0) -> 745 | H112: 112
A113: 80302013 | B113: 0302013 | C113: Bilirrubina total y conjugada | D113: 771 | E113: =IFERROR(VLOOKUP($A113,Filtro!$A$5:$I$351,3,FALSE),0) -> 0 | F113: =IFERROR(VLOOKUP($A113,Filtro!$A$5:$I$351,4,FALSE),0) -> 771 | G113: =IFERROR(VLOOKUP($A113,Filtro!$A$5:$I$351,5,FALSE),0) -> 7,607 | H113: 113
A114: 80302014 | B114: 0302014 | C114: Bromosulftaleína, prueba de (incluye medicamento y tomas de muestra) | D114: 0 | E114: =IFERROR(VLOOKUP($A114,Filtro!$A$5:$I$351,3,FALSE),0) -> 0 | F114: =IFERROR(VLOOKUP($A114,Filtro!$A$5:$I$351,4,FALSE),0) -> 0 | G114: =IFERROR(VLOOKUP($A114,Filtro!$A$5:$I$351,5,FALSE),0) -> 0 | H114: 114
A115: 80302015 | B115: 0302015 | C115: Calcio en sangre | D115: 39 | E115: =IFERROR(VLOOKUP($A115,Filtro!$A$5:$I$351,3,FALSE),0) -> 0 | F115: =IFERROR(VLOOKUP($A115,Filtro!$A$5:$I$351,4,FALSE),0) -> 39 | G115: =IFERROR(VLOOKUP($A115,Filtro!$A$5:$I$351,5,FALSE),0) -> 1,917 | H115: 115
A116: 80302016 | B116: 0302016 | C116: Calcio iónico, incluye proteínas totales | D116: 0 | E116: =IFERROR(VLOOKUP($A116,Filtro!$A$5:$I$351,3,FALSE),0) -> 0 | F116: =IFERROR(VLOOKUP($A116,Filtro!$A$5:$I$351,4,FALSE),0) -> 0 | G116: =IFERROR(VLOOKUP($A116,Filtro!$A$5:$I$351,5,FALSE),0) -> 2 | H116: 116
A117: 80302017 | B117: 0302017 | C117: Caroteno | D117: 0 | E117: =IFERROR(VLOOKUP($A117,Filtro!$A$5:$I$351,3,FALSE),0) -> 0 | F117: =IFERROR(VLOOKUP($A117,Filtro!$A$5:$I$351,4,FALSE),0) -> 0 | G117: =IFERROR(VLOOKUP($A117,Filtro!$A$5:$I$351,5,FALSE),0) -> 0 | H117: 117
A118: 80302018 | B118: 0302018 | C118: Caroteno, prueba de sobrecarga de (incluye tomas de muestra) | D118: 0 | E118: =IFERROR(VLOOKUP($A118,Filtro!$A$5:$I$351,3,FALSE),0) -> 0 | F118: =IFERROR(VLOOKUP($A118,Filtro!$A$5:$I$351,4,FALSE),0) -> 0 | G118: =IFERROR(VLOOKUP($A118,Filtro!$A$5:$I$351,5,FALSE),0) -> 0 | H118: 118
A119: 80302019 | B119: 0302019 | C119: Ceruloplasmina | D119: 0 | E119: =IFERROR(VLOOKUP($A119,Filtro!$A$5:$I$351,3,FALSE),0) -> 0 | F119: =IFERROR(VLOOKUP($A119,Filtro!$A$5:$I$351,4,FALSE),0) -> 0 | G119: =IFERROR(VLOOKUP($A119,Filtro!$A$5:$I$351,5,FALSE),0) -> 20 | H119: 119
A120: 80302020 | B120: 0302020 | C120: Cobre | D120: 68 | E120: =IFERROR(VLOOKUP($A120,Filtro!$A$5:$I$351,3,FALSE),0) -> 0 | F120: =IFERROR(VLOOKUP($A120,Filtro!$A$5:$I$351,4,FALSE),0) -> 68 | G120: =IFERROR(VLOOKUP($A120,Filtro!$A$5:$I$351,5,FALSE),0) -> 1 | H120: 120
A121: 80302067 | B121: 0302067 | C121: Colesterol total (proc. aut.) | D121: 3,328 | E121: =IFERROR(VLOOKUP($A121,Filtro!$A$5:$I$351,3,FALSE),0) -> 0 | F121: =IFERROR(VLOOKUP($A121,Filtro!$A$5:$I$351,4,FALSE),0) -> 3,328 | G121: =IFERROR(VLOOKUP($A121,Filtro!$A$5:$I$351,5,FALSE),0) -> 58,781 | H121: 121
A122: 80302068 | B122: 0302068 | C122: Colesterol HDL (proc. aut.) | D122: 819 | E122: =IFERROR(VLOOKUP($A122,Filtro!$A$5:$I$351,3,FALSE),0) -> 0 | F122: =IFERROR(VLOOKUP($A122,Filtro!$A$5:$I$351,4,FALSE),0) -> 819 | G122: =IFERROR(VLOOKUP($A122,Filtro!$A$5:$I$351,5,FALSE),0) -> 51,289 | H122: 122
A123: 80302021 | B123: 0302021 | C123: Colinesterasa en plasma o sangre total | D123: 0 | E123: =IFERROR(VLOOKUP($A123,Filtro!$A$5:$I$351,3,FALSE),0) -> 0 | F123: =IFERROR(VLOOKUP($A123,Filtro!$A$5:$I$351,4,FALSE),0) -> 0 | G123: =IFERROR(VLOOKUP($A123,Filtro!$A$5:$I$351,5,FALSE),0) -> 581 | H123: 123
A124: 80302022 | B124: 0302022 | C124: Creatina | D124: 292 | E124: =IFERROR(VLOOKUP($A124,Filtro!$A$5:$I$351,3,FALSE),0) -> 0 | F124: =IFERROR(VLOOKUP($A124,Filtro!$A$5:$I$351,4,FALSE),0) -> 292 | G124: =IFERROR(VLOOKUP($A124,Filtro!$A$5:$I$351,5,FALSE),0) -> 2,046 | H124: 124
A125: 80302023 | B125: 0302023 | C125: Creatinina en sangre | D125: 35,599 | E125: =IFERROR(VLOOKUP($A125,Filtro!$A$5:$I$351,3,FALSE),0) -> 0 | F125: =IFERROR(VLOOKUP($A125,Filtro!$A$5:$I$351,4,FALSE),0) -> 35,599 | G125: =IFERROR(VLOOKUP($A125,Filtro!$A$5:$I$351,5,FALSE),0) -> 93,832 | H125: 125
A126: 80302024 | B126: 0302024 | C126: Creatinina, depuración de (Clearence) (proc. aut.) | D126: 172 | E126: =IFERROR(VLOOKUP($A126,Filtro!$A$5:$I$351,3,FALSE),0) -> 0 | F126: =IFERROR(VLOOKUP($A126,Filtro!$A$5:$I$351,4,FALSE),0) -> 172 | G126: =IFERROR(VLOOKUP($A126,Filtro!$A$5:$I$351,5,FALSE),0) -> 252 | H126: 126
A127: 80302025 | B127: 0302025 | C127: Creatinquinasa CK - MB miocárdica | D127: 0 | E127: =IFERROR(VLOOKUP($A127,Filtro!$A$5:$I$351,3,FALSE),0) -> 0 | F127: =IFERROR(VLOOKUP($A127,Filtro!$A$5:$I$351,4,FALSE),0) -> 0 | G127: =IFERROR(VLOOKUP($A127,Filtro!$A$5:$I$351,5,FALSE),0) -> 15 | H127: 127
A128: 80302026 | B128: 0302026 | C128: Creatinquinasa CK - total | D128: 1 | E128: =IFERROR(VLOOKUP($A128,Filtro!$A$5:$I$351,3,FALSE),0) -> 0 | F128: =IFERROR(VLOOKUP($A128,Filtro!$A$5:$I$351,4,FALSE),0) -> 1 | G128: =IFERROR(VLOOKUP($A128,Filtro!$A$5:$I$351,5,FALSE),0) -> 416 | H128: 128
A129: 80302028 | B129: 0302028 | C129: Depuraciones (Clearance) exógenas de Hipurán, Rojo Congo, manitol e inulina, c/u (no incluye medicamento) | D129: 32 | E129: =IFERROR(VLOOKUP($A129,Filtro!$A$5:$I$351,3,FALSE),0) -> 0 | F129: =IFERROR(VLOOKUP($A129,Filtro!$A$5:$I$351,4,FALSE),0) -> 32 | G129: =IFERROR(VLOOKUP($A129,Filtro!$A$5:$I$351,5,FALSE),0) -> 1 | H129: 129
A130: 80302029 | B130: 0302029 | C130: Deshidrogenasa hidroxibutírica (HBDH) | D130: 0 | E130: =IFERROR(VLOOKUP($A130,Filtro!$A$5:$I$351,3,FALSE),0) -> 0 | F130: =IFERROR(VLOOKUP($A130,Filtro!$A$5:$I$351,4,FALSE),0) -> 0 | G130: =IFERROR(VLOOKUP($A130,Filtro!$A$5:$I$351,5,FALSE),0) -> 0 | H130: 130
A131: 80302030 | B131: 0302030 | C131: Deshidrogenasa láctica total (LDH) | D131: 26 | E131: =IFERROR(VLOOKUP($A131,Filtro!$A$5:$I$351,3,FALSE),0) -> 0 | F131: =IFERROR(VLOOKUP($A131,Filtro!$A$5:$I$351,4,FALSE),0) -> 26 | G131: =IFERROR(VLOOKUP($A131,Filtro!$A$5:$I$351,5,FALSE),0) -> 527 | H131: 131
A132: 80302031 | B132: 0302031 | C132: Deshidrogenasa láctica total (LDH), con separación de isoenzimas | D132: 0 | E132: =IFERROR(VLOOKUP($A132,Filtro!$A$5:$I$351,3,FALSE),0) -> 0 | F132: =IFERROR(VLOOKUP($A132,Filtro!$A$5:$I$351,4,FALSE),0) -> 0 | G132: =IFERROR(VLOOKUP($A132,Filtro!$A$5:$I$351,5,FALSE),0) -> 269 | H132: 132
A133: 80302032 | B133: 0302032 | C133: Electrolitos plasmáticos (sodio, potasio, cloro) c/u | D133: 64,723 | E133: =IFERROR(VLOOKUP($A133,Filtro!$A$5:$I$351,3,FALSE),0) -> 0 | F133: =IFERROR(VLOOKUP($A133,Filtro!$A$5:$I$351,4,FALSE),0) -> 64,723 | G133: =IFERROR(VLOOKUP($A133,Filtro!$A$5:$I$351,5,FALSE),0) -> 79,317 | H133: 133
A134: 80302033 | B134: 0302033 | C134: Enzima convertidora de angiotensina I | D134: 0 | E134: =IFERROR(VLOOKUP($A134,Filtro!$A$5:$I$351,3,FALSE),0) -> 0 | F134: =IFERROR(VLOOKUP($A134,Filtro!$A$5:$I$351,4,FALSE),0) -> 0 | G134: =IFERROR(VLOOKUP($A134,Filtro!$A$5:$I$351,5,FALSE),0) -> 1,270 | H134: 134
A135: 80302034 | B135: 0302034 | C135: Perfil Lipídico (incluye: colesterol total, HDL, LDL, VLDL y triglicéridos) | D135: 42,144 | E135: =IFERROR(VLOOKUP($A135,Filtro!$A$5:$I$351,3,FALSE),0) -> 0 | F135: =IFERROR(VLOOKUP($A135,Filtro!$A$5:$I$351,4,FALSE),0) -> 42,144 | G135: =IFERROR(VLOOKUP($A135,Filtro!$A$5:$I$351,5,FALSE),0) -> 65,991 | H135: 135
A136: 80302035 | B136: 0302035 | C136: Fármacos y/o drogas; niveles plasmáticos de (alcohol, anorexígenos, antiarrítmicos, antibióticos, antidepresivos, antiepilépticos, antihistamínicos, antiinflamatorios y analgésicos, estimulantes respiratorios, tranquilizantes mayores y menores, etc.) c/u | D136: 0 | E136: =IFERROR(VLOOKUP($A136,Filtro!$A$5:$I$351,3,FALSE),0) -> 0 | F136: =IFERROR(VLOOKUP($A136,Filtro!$A$5:$I$351,4,FALSE),0) -> 0 | G136: =IFERROR(VLOOKUP($A136,Filtro!$A$5:$I$351,5,FALSE),0) -> 152 | H136: 136
A137: 80302036 | B137: 0302036 | C137: Fenilalanina | D137: 0 | E137: =IFERROR(VLOOKUP($A137,Filtro!$A$5:$I$351,3,FALSE),0) -> 0 | F137: =IFERROR(VLOOKUP($A137,Filtro!$A$5:$I$351,4,FALSE),0) -> 0 | G137: =IFERROR(VLOOKUP($A137,Filtro!$A$5:$I$351,5,FALSE),0) -> 0 | H137: 137
A138: 80302037 | B138: 0302037 | C138: Fosfatasas ácidas totales | D138: 0 | E138: =IFERROR(VLOOKUP($A138,Filtro!$A$5:$I$351,3,FALSE),0) -> 0 | F138: =IFERROR(VLOOKUP($A138,Filtro!$A$5:$I$351,4,FALSE),0) -> 0 | G138: =IFERROR(VLOOKUP($A138,Filtro!$A$5:$I$351,5,FALSE),0) -> 0 | H138: 138
A139: 80302038 | B139: 0302038 | C139: Fosfatasas ácidas totales y fracción prostática | D139: 0 | E139: =IFERROR(VLOOKUP($A139,Filtro!$A$5:$I$351,3,FALSE),0) -> 0 | F139: =IFERROR(VLOOKUP($A139,Filtro!$A$5:$I$351,4,FALSE),0) -> 0 | G139: =IFERROR(VLOOKUP($A139,Filtro!$A$5:$I$351,5,FALSE),0) -> 0 | H139: 139
A140: 80302039 | B140: 0302039 | C140: Fosfatasas alcalinas con separación de isoenzimas hepáticas, intestinales, óseas c/u | D140: 0 | E140: =IFERROR(VLOOKUP($A140,Filtro!$A$5:$I$351,3,FALSE),0) -> 0 | F140: =IFERROR(VLOOKUP($A140,Filtro!$A$5:$I$351,4,FALSE),0) -> 0 | G140: =IFERROR(VLOOKUP($A140,Filtro!$A$5:$I$351,5,FALSE),0) -> 4 | H140: 140
A141: 80302040 | B141: 0302040 | C141: Fosfatasas alcalinas totales | D141: 350 | E141: =IFERROR(VLOOKUP($A141,Filtro!$A$5:$I$351,3,FALSE),0) -> 0 | F141: =IFERROR(VLOOKUP($A141,Filtro!$A$5:$I$351,4,FALSE),0) -> 350 | G141: =IFERROR(VLOOKUP($A141,Filtro!$A$5:$I$351,5,FALSE),0) -> 6,761 | H141: 141
A142: 80302041 | B142: 0302041 | C142: Fosfolípidos | D142: 0 | E142: =IFERROR(VLOOKUP($A142,Filtro!$A$5:$I$351,3,FALSE),0) -> 0 | F142: =IFERROR(VLOOKUP($A142,Filtro!$A$5:$I$351,4,FALSE),0) -> 0 | G142: =IFERROR(VLOOKUP($A142,Filtro!$A$5:$I$351,5,FALSE),0) -> 0 | H142: 142
A143: 80302042 | B143: 0302042 | C143: Fósforo (fosfatos) en sangre | D143: 30 | E143: =IFERROR(VLOOKUP($A143,Filtro!$A$5:$I$351,3,FALSE),0) -> 0 | F143: =IFERROR(VLOOKUP($A143,Filtro!$A$5:$I$351,4,FALSE),0) -> 30 | G143: =IFERROR(VLOOKUP($A143,Filtro!$A$5:$I$351,5,FALSE),0) -> 442 | H143: 143
A144: 80302043 | B144: 0302043 | C144: Galactosa | D144: 0 | E144: =IFERROR(VLOOKUP($A144,Filtro!$A$5:$I$351,3,FALSE),0) -> 0 | F144: =IFERROR(VLOOKUP($A144,Filtro!$A$5:$I$351,4,FALSE),0) -> 0 | G144: =IFERROR(VLOOKUP($A144,Filtro!$A$5:$I$351,5,FALSE),0) -> 0 | H144: 144
A145: 80302044 | B145: 0302044 | C145: Galactosa, curva de tolerancia, (mínimo cuatro determinaciones) (no incluye la galactosa que se administra) (incluye los valores de todas las tomas de muestras necesarias) | D145: 0 | E145: =IFERROR(VLOOKUP($A145,Filtro!$A$5:$I$351,3,FALSE),0) -> 0 | F145: =IFERROR(VLOOKUP($A145,Filtro!$A$5:$I$351,4,FALSE),0) -> 0 | G145: =IFERROR(VLOOKUP($A145,Filtro!$A$5:$I$351,5,FALSE),0) -> 0 | H145: 145
A146: 80302045 | B146: 0302045 | C146: Gamma glutamiltranspeptidasa (GGT) | D146: 243 | E146: =IFERROR(VLOOKUP($A146,Filtro!$A$5:$I$351,3,FALSE),0) -> 0 | F146: =IFERROR(VLOOKUP($A146,Filtro!$A$5:$I$351,4,FALSE),0) -> 243 | G146: =IFERROR(VLOOKUP($A146,Filtro!$A$5:$I$351,5,FALSE),0) -> 917 | H146: 146
A147: 80302046 | B147: 0302046 | C147: Gases y equilibrio ácido base en sangre (incluye: pH, O2, CO2, exceso de base y bicarbonato), todos o cada uno de los parámetros | D147: 0 | E147: =IFERROR(VLOOKUP($A147,Filtro!$A$5:$I$351,3,FALSE),0) -> 0 | F147: =IFERROR(VLOOKUP($A147,Filtro!$A$5:$I$351,4,FALSE),0) -> 0 | G147: =IFERROR(VLOOKUP($A147,Filtro!$A$5:$I$351,5,FALSE),0) -> 0 | H147: 147
A148: 80302047 | B148: 0302047 | C148: Glucosa en sangre | D148: 48,753 | E148: =IFERROR(VLOOKUP($A148,Filtro!$A$5:$I$351,3,FALSE),0) -> 0 | F148: =IFERROR(VLOOKUP($A148,Filtro!$A$5:$I$351,4,FALSE),0) -> 48,753 | G148: =IFERROR(VLOOKUP($A148,Filtro!$A$5:$I$351,5,FALSE),0) -> 122,358 | H148: 148
A149: 80302048 | B149: 0302048 | C149: Glucosa, Prueba de Tolerancia a la Glucosa Oral (PTGO), (dos determinaciones) (no incluye la glucosa que se administra) (incluye el valor de las dos tomas de muestras) | D149: 4,200 | E149: =IFERROR(VLOOKUP($A149,Filtro!$A$5:$I$351,3,FALSE),0) -> 0 | F149: =IFERROR(VLOOKUP($A149,Filtro!$A$5:$I$351,4,FALSE),0) -> 4,200 | G149: =IFERROR(VLOOKUP($A149,Filtro!$A$5:$I$351,5,FALSE),0) -> 8,909 | H149: 149
A150: 80302050 | B150: 0302050 | C150: Adenosindeaminasa en sangre u otro fluído biológico. | D150: 0 | E150: =IFERROR(VLOOKUP($A150,Filtro!$A$5:$I$351,3,FALSE),0) -> 0 | F150: =IFERROR(VLOOKUP($A150,Filtro!$A$5:$I$351,4,FALSE),0) -> 0 | G150: =IFERROR(VLOOKUP($A150,Filtro!$A$5:$I$351,5,FALSE),0) -> 19 | H150: 150
A151: 80302051 | B151: 0302051 | C151: Lactosa, curva de tolerancia, (mínimo cuatro determinaciones) (no incluye la lactosa que se administra) (incluye los valores de todas las tomas de muestras necesarias) | D151: 0 | E151: =IFERROR(VLOOKUP($A151,Filtro!$A$5:$I$351,3,FALSE),0) -> 0 | F151: =IFERROR(VLOOKUP($A151,Filtro!$A$5:$I$351,4,FALSE),0) -> 0 | G151: =IFERROR(VLOOKUP($A151,Filtro!$A$5:$I$351,5,FALSE),0) -> 27 | H151: 151
A152: 80302052 | B152: 0302052 | C152: Leucinaminopeptidasa (LAP) | D152: 0 | E152: =IFERROR(VLOOKUP($A152,Filtro!$A$5:$I$351,3,FALSE),0) -> 0 | F152: =IFERROR(VLOOKUP($A152,Filtro!$A$5:$I$351,4,FALSE),0) -> 0 | G152: =IFERROR(VLOOKUP($A152,Filtro!$A$5:$I$351,5,FALSE),0) -> 0 | H152: 152
A153: 80302053 | B153: 0302053 | C153: Lipasa | D153: 0 | E153: =IFERROR(VLOOKUP($A153,Filtro!$A$5:$I$351,3,FALSE),0) -> 0 | F153: =IFERROR(VLOOKUP($A153,Filtro!$A$5:$I$351,4,FALSE),0) -> 0 | G153: =IFERROR(VLOOKUP($A153,Filtro!$A$5:$I$351,5,FALSE),0) -> 5 | H153: 153
A154: 80302069 | B154: 0302069 | C154: Lípidos totales (proc. aut.) | D154: 0 | E154: =IFERROR(VLOOKUP($A154,Filtro!$A$5:$I$351,3,FALSE),0) -> 0 | F154: =IFERROR(VLOOKUP($A154,Filtro!$A$5:$I$351,4,FALSE),0) -> 0 | G154: =IFERROR(VLOOKUP($A154,Filtro!$A$5:$I$351,5,FALSE),0) -> 2,525 | H154: 154
A155: 80302054 | B155: 0302054 | C155: Lipoproteínas, electroforesis de (incluye lípidos totales) | D155: 0 | E155: =IFERROR(VLOOKUP($A155,Filtro!$A$5:$I$351,3,FALSE),0) -> 0 | F155: =IFERROR(VLOOKUP($A155,Filtro!$A$5:$I$351,4,FALSE),0) -> 0 | G155: =IFERROR(VLOOKUP($A155,Filtro!$A$5:$I$351,5,FALSE),0) -> 7 | H155: 155
A156: 80302055 | B156: 0302055 | C156: Litio | D156: 0 | E156: =IFERROR(VLOOKUP($A156,Filtro!$A$5:$I$351,3,FALSE),0) -> 0 | F156: =IFERROR(VLOOKUP($A156,Filtro!$A$5:$I$351,4,FALSE),0) -> 0 | G156: =IFERROR(VLOOKUP($A156,Filtro!$A$5:$I$351,5,FALSE),0) -> 0 | H156: 156
A157: 80302056 | B157: 0302056 | C157: Magnesio | D157: 0 | E157: =IFERROR(VLOOKUP($A157,Filtro!$A$5:$I$351,3,FALSE),0) -> 0 | F157: =IFERROR(VLOOKUP($A157,Filtro!$A$5:$I$351,4,FALSE),0) -> 0 | G157: =IFERROR(VLOOKUP($A157,Filtro!$A$5:$I$351,5,FALSE),0) -> 3 | H157: 157
A158: 80302057 | B158: 0302057 | C158: Nitrógeno ureico y/o úrea en sangre | D158: 22,034 | E158: =IFERROR(VLOOKUP($A158,Filtro!$A$5:$I$351,3,FALSE),0) -> 0 | F158: =IFERROR(VLOOKUP($A158,Filtro!$A$5:$I$351,4,FALSE),0) -> 22,034 | G158: =IFERROR(VLOOKUP($A158,Filtro!$A$5:$I$351,5,FALSE),0) -> 40,547 | H158: 158
A159: 80302058 | B159: 0302058 | C159: Osmolalidad en sangre | D159: 0 | E159: =IFERROR(VLOOKUP($A159,Filtro!$A$5:$I$351,3,FALSE),0) -> 0 | F159: =IFERROR(VLOOKUP($A159,Filtro!$A$5:$I$351,4,FALSE),0) -> 0 | G159: =IFERROR(VLOOKUP($A159,Filtro!$A$5:$I$351,5,FALSE),0) -> 1 | H159: 159
A160: 80302075 | B160: 0302075 | C160: Perfil bioquímico (determinación automatizada de 12 parámetros) | D160: 35 | E160: =IFERROR(VLOOKUP($A160,Filtro!$A$5:$I$351,3,FALSE),0) -> 0 | F160: =IFERROR(VLOOKUP($A160,Filtro!$A$5:$I$351,4,FALSE),0) -> 35 | G160: =IFERROR(VLOOKUP($A160,Filtro!$A$5:$I$351,5,FALSE),0) -> 1,114 | H160: 160
A161: 80302059 | B161: 0302059 | C161: Proteínas fraccionadas albúmina/globulina (incluye código 03-02-060) | D161: 812 | E161: =IFERROR(VLOOKUP($A161,Filtro!$A$5:$I$351,3,FALSE),0) -> 0 | F161: =IFERROR(VLOOKUP($A161,Filtro!$A$5:$I$351,4,FALSE),0) -> 812 | G161: =IFERROR(VLOOKUP($A161,Filtro!$A$5:$I$351,5,FALSE),0) -> 66 | H161: 161
A162: 80302060 | B162: 0302060 | C162: Proteínas totales o albúminas, c/u en sangre | D162: 908 | E162: =IFERROR(VLOOKUP($A162,Filtro!$A$5:$I$351,3,FALSE),0) -> 0 | F162: =IFERROR(VLOOKUP($A162,Filtro!$A$5:$I$351,4,FALSE),0) -> 908 | G162: =IFERROR(VLOOKUP($A162,Filtro!$A$5:$I$351,5,FALSE),0) -> 2,895 | H162: 162
A163: 80302061 | B163: 0302061 | C163: Proteínas, electroforesis (incluye cód. 03-02-060) | D163: 0 | E163: =IFERROR(VLOOKUP($A163,Filtro!$A$5:$I$351,3,FALSE),0) -> 0 | F163: =IFERROR(VLOOKUP($A163,Filtro!$A$5:$I$351,4,FALSE),0) -> 0 | G163: =IFERROR(VLOOKUP($A163,Filtro!$A$5:$I$351,5,FALSE),0) -> 0 | H163: 163
A164: 80302062 | B164: 0302062 | C164: Salicilemia cuantitativa | D164: 0 | E164: =IFERROR(VLOOKUP($A164,Filtro!$A$5:$I$351,3,FALSE),0) -> 0 | F164: =IFERROR(VLOOKUP($A164,Filtro!$A$5:$I$351,4,FALSE),0) -> 0 | G164: =IFERROR(VLOOKUP($A164,Filtro!$A$5:$I$351,5,FALSE),0) -> 184 | H164: 164
A165: 80302076 | B165: 0302076 | C165: Perfil Hepático (incluye tiempo de protrombina, bilirrubina total y conjugada, fosfatasas alcalinas totales, GGT, transaminasas GOT/AST y GPT/ALT) | D165: =SUM(E165:F165) -> 20,540 | E165: =IFERROR(VLOOKUP($A165,Filtro!$A$5:$I$351,3,FALSE),0) -> 0 | F165: =IFERROR(VLOOKUP($A165,Filtro!$A$5:$I$351,4,FALSE),0) -> 20,540 | G165: =IFERROR(VLOOKUP($A165,Filtro!$A$5:$I$351,5,FALSE),0) -> 22,483 | H165: 165
A166: 80302063 | B166: 0302063 | C166: Transaminasas, oxalacética (GOT/AST), Pirúvica (GPT/ALT), c/u | D166: 650 | E166: =IFERROR(VLOOKUP($A166,Filtro!$A$5:$I$351,3,FALSE),0) -> 0 | F166: =IFERROR(VLOOKUP($A166,Filtro!$A$5:$I$351,4,FALSE),0) -> 650 | G166: =IFERROR(VLOOKUP($A166,Filtro!$A$5:$I$351,5,FALSE),0) -> 17,225 | H166: 166
A167: 80302064 | B167: 0302064 | C167: Triglicéridos (proc. aut.) | D167: 1,666 | E167: =IFERROR(VLOOKUP($A167,Filtro!$A$5:$I$351,3,FALSE),0) -> 0 | F167: =IFERROR(VLOOKUP($A167,Filtro!$A$5:$I$351,4,FALSE),0) -> 1,666 | G167: =IFERROR(VLOOKUP($A167,Filtro!$A$5:$I$351,5,FALSE),0) -> 53,308 | H167: 167
A168: 80302065 | B168: 0302065 | C168: Vitaminas A, B, C, D, E, etc., c/u | D168: 0 | E168: =IFERROR(VLOOKUP($A168,Filtro!$A$5:$I$351,3,FALSE),0) -> 0 | F168: =IFERROR(VLOOKUP($A168,Filtro!$A$5:$I$351,4,FALSE),0) -> 0 | G168: =IFERROR(VLOOKUP($A168,Filtro!$A$5:$I$351,5,FALSE),0) -> 374 | H168: 168
A169: 80302066 | B169: 0302066 | C169: Xilosa, prueba de absorción (no incluye la xilosa que se administra) | D169: 0 | E169: =IFERROR(VLOOKUP($A169,Filtro!$A$5:$I$351,3,FALSE),0) -> 0 | F169: =IFERROR(VLOOKUP($A169,Filtro!$A$5:$I$351,4,FALSE),0) -> 0 | G169: =IFERROR(VLOOKUP($A169,Filtro!$A$5:$I$351,5,FALSE),0) -> 0 | H169: 169
B170: TOTAL | D170: =SUM(D101:D169) -> 272,398 | E170: =SUM(E101:E169) -> 0 | F170: =SUM(F101:F169) -> 272,398 | G170: =SUM(G101:G169) -> 687,676 | H170: 170
H171: 171
B172: EXÁMENES HORMONALES | H172: 172
A173: 80303015 | B173: 0303015 | C173: Hormona folículo estimulante (FSH) | D173: =SUM(E173:F173) -> 11 | E173: =IFERROR(VLOOKUP($A173,Filtro!$A$5:$I$351,3,FALSE),0) -> 0 | F173: =IFERROR(VLOOKUP($A173,Filtro!$A$5:$I$351,4,FALSE),0) -> 11 | G173: =IFERROR(VLOOKUP($A173,Filtro!$A$5:$I$351,5,FALSE),0) -> 186 | H173: 173
A174: 80303024 | B174: 0303024 | C174: Tiroestimulante (TSH), hormona (adulto, niño o R.N.) | D174: 30,511 | E174: =IFERROR(VLOOKUP($A174,Filtro!$A$5:$I$351,3,FALSE),0) -> 0 | F174: =IFERROR(VLOOKUP($A174,Filtro!$A$5:$I$351,4,FALSE),0) -> 30,511 | G174: =IFERROR(VLOOKUP($A174,Filtro!$A$5:$I$351,5,FALSE),0) -> 79,879 | H174: 174
A175: 80303025 | B175: 0303025 | C175: Tiroglobulina | D175: 0 | E175: =IFERROR(VLOOKUP($A175,Filtro!$A$5:$I$351,3,FALSE),0) -> 0 | F175: =IFERROR(VLOOKUP($A175,Filtro!$A$5:$I$351,4,FALSE),0) -> 0 | G175: =IFERROR(VLOOKUP($A175,Filtro!$A$5:$I$351,5,FALSE),0) -> 39 | H175: 175
A176: 80303026 | B176: 0303026 | C176: Tiroxina libre (T4L) | D176: 21,760 | E176: =IFERROR(VLOOKUP($A176,Filtro!$A$5:$I$351,3,FALSE),0) -> 0 | F176: =IFERROR(VLOOKUP($A176,Filtro!$A$5:$I$351,4,FALSE),0) -> 21,760 | G176: =IFERROR(VLOOKUP($A176,Filtro!$A$5:$I$351,5,FALSE),0) -> 29,426 | H176: 176
A177: 80303027 | B177: 0303027 | C177: Tiroxina o tetrayodotironina (T4) | D177: 460 | E177: =IFERROR(VLOOKUP($A177,Filtro!$A$5:$I$351,3,FALSE),0) -> 0 | F177: =IFERROR(VLOOKUP($A177,Filtro!$A$5:$I$351,4,FALSE),0) -> 460 | G177: =IFERROR(VLOOKUP($A177,Filtro!$A$5:$I$351,5,FALSE),0) -> 113 | H177: 177
A178: 80303028 | B178: 0303028 | C178: Triyodotironina (T3) | D178: 294 | E178: =IFERROR(VLOOKUP($A178,Filtro!$A$5:$I$351,3,FALSE),0) -> 0 | F178: =IFERROR(VLOOKUP($A178,Filtro!$A$5:$I$351,4,FALSE),0) -> 294 | G178: =IFERROR(VLOOKUP($A178,Filtro!$A$5:$I$351,5,FALSE),0) -> 47 | H178: 178
B179: TOTAL | D179: =SUM(D173:D178) -> 53,036 | E179: =SUM(E173:E178) -> 0 | F179: =SUM(F173:F178) -> 53,036 | G179: =SUM(G173:G178) -> 109,690 | H179: 179
H180: 180
B181: INMUNOLÓGICOS | H181: 181
A182: 80305001 | B182: 0305001 | C182: Alfa -1- antitripsina cuantitativa | D182: =SUM(E182:F182) -> 0 | E182: =IFERROR(VLOOKUP($A182,Filtro!$A$5:$I$351,3,FALSE),0) -> 0 | F182: =IFERROR(VLOOKUP($A182,Filtro!$A$5:$I$351,4,FALSE),0) -> 0 | G182: =IFERROR(VLOOKUP($A182,Filtro!$A$5:$I$351,5,FALSE),0) -> 0 | H182: 182
A183: 80305002 | B183: 0305002 | C183: Alfa -2- macroglobulina | D183: 0 | E183: =IFERROR(VLOOKUP($A183,Filtro!$A$5:$I$351,3,FALSE),0) -> 0 | F183: =IFERROR(VLOOKUP($A183,Filtro!$A$5:$I$351,4,FALSE),0) -> 0 | G183: =IFERROR(VLOOKUP($A183,Filtro!$A$5:$I$351,5,FALSE),0) -> 0 | H183: 183
A184: 80305003 | B184: 0305003 | C184: Alfa fetoproteínas | D184: 0 | E184: =IFERROR(VLOOKUP($A184,Filtro!$A$5:$I$351,3,FALSE),0) -> 0 | F184: =IFERROR(VLOOKUP($A184,Filtro!$A$5:$I$351,4,FALSE),0) -> 0 | G184: =IFERROR(VLOOKUP($A184,Filtro!$A$5:$I$351,5,FALSE),0) -> 0 | H184: 184
A185: 80305004 | B185: 0305004 | C185: Tamizaje de Anticuerpos anti antígenos nucleares extractables (a- ENA: Sm, RNP, Ro, La, Scl- 70 y Jo- 1) | D185: 0 | E185: =IFERROR(VLOOKUP($A185,Filtro!$A$5:$I$351,3,FALSE),0) -> 0 | F185: =IFERROR(VLOOKUP($A185,Filtro!$A$5:$I$351,4,FALSE),0) -> 0 | G185: =IFERROR(VLOOKUP($A185,Filtro!$A$5:$I$351,5,FALSE),0) -> 3 | H185: 185
A186: 80305005 | B186: 0305005 | C186: Anticuerpos antinucleares (ANA), antimitocondriales, anti DNA (ADNA), anti músculo liso, anticentrómero, u otros, c/u. | D186: 0 | E186: =IFERROR(VLOOKUP($A186,Filtro!$A$5:$I$351,3,FALSE),0) -> 0 | F186: =IFERROR(VLOOKUP($A186,Filtro!$A$5:$I$351,4,FALSE),0) -> 0 | G186: =IFERROR(VLOOKUP($A186,Filtro!$A$5:$I$351,5,FALSE),0) -> 217 | H186: 186
A187: 80305006 | B187: 0305006 | C187: Anticuerpos atípicos, pannel de identificación | D187: 0 | E187: =IFERROR(VLOOKUP($A187,Filtro!$A$5:$I$351,3,FALSE),0) -> 0 | F187: =IFERROR(VLOOKUP($A187,Filtro!$A$5:$I$351,4,FALSE),0) -> 0 | G187: =IFERROR(VLOOKUP($A187,Filtro!$A$5:$I$351,5,FALSE),0) -> 0 | H187: 187
A188: 80305007 | B188: 0305007 | C188: Anticuerpos específicos y otros autoanticuerpos (anticuerpos antitiroídeos: anticuerpos antimicrosomales y antitiroglobulinas y otros anticuerpos: prostático, espermios, etc.) c/u | D188: 0 | E188: =IFERROR(VLOOKUP($A188,Filtro!$A$5:$I$351,3,FALSE),0) -> 0 | F188: =IFERROR(VLOOKUP($A188,Filtro!$A$5:$I$351,4,FALSE),0) -> 0 | G188: =IFERROR(VLOOKUP($A188,Filtro!$A$5:$I$351,5,FALSE),0) -> 1 | H188: 188
A189: 80305008 | B189: 0305008 | C189: Antiestreptolisina O, por técnica de látex | D189: 0 | E189: =IFERROR(VLOOKUP($A189,Filtro!$A$5:$I$351,3,FALSE),0) -> 0 | F189: =IFERROR(VLOOKUP($A189,Filtro!$A$5:$I$351,4,FALSE),0) -> 0 | G189: =IFERROR(VLOOKUP($A189,Filtro!$A$5:$I$351,5,FALSE),0) -> 0 | H189: 189
A190: 80305009 | B190: 0305009 | C190: Antígeno carcinoembrionario (CEA) | D190: 0 | E190: =IFERROR(VLOOKUP($A190,Filtro!$A$5:$I$351,3,FALSE),0) -> 0 | F190: =IFERROR(VLOOKUP($A190,Filtro!$A$5:$I$351,4,FALSE),0) -> 0 | G190: =IFERROR(VLOOKUP($A190,Filtro!$A$5:$I$351,5,FALSE),0) -> 0 | H190: 190
A191: 80305070 | B191: 0305070 | C191: Antígeno prostático específico | D191: 1,742 | E191: =IFERROR(VLOOKUP($A191,Filtro!$A$5:$I$351,3,FALSE),0) -> 0 | F191: =IFERROR(VLOOKUP($A191,Filtro!$A$5:$I$351,4,FALSE),0) -> 1,742 | G191: =IFERROR(VLOOKUP($A191,Filtro!$A$5:$I$351,5,FALSE),0) -> 6,181 | H191: 191
A192: 80305170 | B192: 0305170 | C192: Antígeno Ca 125, Ca 15-3 y Ca 19-9, c/u | D192: 0 | E192: =IFERROR(VLOOKUP($A192,Filtro!$A$5:$I$351,3,FALSE),0) -> 0 | F192: =IFERROR(VLOOKUP($A192,Filtro!$A$5:$I$351,4,FALSE),0) -> 0 | G192: =IFERROR(VLOOKUP($A192,Filtro!$A$5:$I$351,5,FALSE),0) -> 21 | H192: 192
A193: 80305010 | B193: 0305010 | C193: Beta-2-microglobulina | D193: 0 | E193: =IFERROR(VLOOKUP($A193,Filtro!$A$5:$I$351,3,FALSE),0) -> 0 | F193: =IFERROR(VLOOKUP($A193,Filtro!$A$5:$I$351,4,FALSE),0) -> 0 | G193: =IFERROR(VLOOKUP($A193,Filtro!$A$5:$I$351,5,FALSE),0) -> 9 | H193: 193
A194: 80305011 | B194: 0305011 | C194: Complejos inmunes circulantes | D194: 0 | E194: =IFERROR(VLOOKUP($A194,Filtro!$A$5:$I$351,3,FALSE),0) -> 0 | F194: =IFERROR(VLOOKUP($A194,Filtro!$A$5:$I$351,4,FALSE),0) -> 0 | G194: =IFERROR(VLOOKUP($A194,Filtro!$A$5:$I$351,5,FALSE),0) -> 0 | H194: 194
A195: 80305012 | B195: 0305012 | C195: Complemento C1Q, C2, C3, C4, etc., c/u | D195: 0 | E195: =IFERROR(VLOOKUP($A195,Filtro!$A$5:$I$351,3,FALSE),0) -> 0 | F195: =IFERROR(VLOOKUP($A195,Filtro!$A$5:$I$351,4,FALSE),0) -> 0 | G195: =IFERROR(VLOOKUP($A195,Filtro!$A$5:$I$351,5,FALSE),0) -> 5 | H195: 195
A196: 80305013 | B196: 0305013 | C196: Complemento hemolítico (CH 50) | D196: 0 | E196: =IFERROR(VLOOKUP($A196,Filtro!$A$5:$I$351,3,FALSE),0) -> 0 | F196: =IFERROR(VLOOKUP($A196,Filtro!$A$5:$I$351,4,FALSE),0) -> 0 | G196: =IFERROR(VLOOKUP($A196,Filtro!$A$5:$I$351,5,FALSE),0) -> 0 | H196: 196
A197: 80305014 | B197: 0305014 | C197: Crioglobulinas, precipitación en frío (cualitativa) o cuantitativa c/u | D197: 0 | E197: =IFERROR(VLOOKUP($A197,Filtro!$A$5:$I$351,3,FALSE),0) -> 0 | F197: =IFERROR(VLOOKUP($A197,Filtro!$A$5:$I$351,4,FALSE),0) -> 0 | G197: =IFERROR(VLOOKUP($A197,Filtro!$A$5:$I$351,5,FALSE),0) -> 0 | H197: 197
A198: 80305015 | B198: 0305015 | C198: Depósito de complejos inmunes por inmunofluorescencia | D198: 0 | E198: =IFERROR(VLOOKUP($A198,Filtro!$A$5:$I$351,3,FALSE),0) -> 0 | F198: =IFERROR(VLOOKUP($A198,Filtro!$A$5:$I$351,4,FALSE),0) -> 0 | G198: =IFERROR(VLOOKUP($A198,Filtro!$A$5:$I$351,5,FALSE),0) -> 0 | H198: 198
A199: 80305016 | B199: 0305016 | C199: Depósito de complemento por inmunofluorescencia (C3, C4), c/u | D199: 0 | E199: =IFERROR(VLOOKUP($A199,Filtro!$A$5:$I$351,3,FALSE),0) -> 0 | F199: =IFERROR(VLOOKUP($A199,Filtro!$A$5:$I$351,4,FALSE),0) -> 0 | G199: =IFERROR(VLOOKUP($A199,Filtro!$A$5:$I$351,5,FALSE),0) -> 0 | H199: 199
A200: 80305017 | B200: 0305017 | C200: Depósito de fibrinógeno por inmunofluorescencia | D200: 0 | E200: =IFERROR(VLOOKUP($A200,Filtro!$A$5:$I$351,3,FALSE),0) -> 0 | F200: =IFERROR(VLOOKUP($A200,Filtro!$A$5:$I$351,4,FALSE),0) -> 0 | G200: =IFERROR(VLOOKUP($A200,Filtro!$A$5:$I$351,5,FALSE),0) -> 0 | H200: 200
A201: 80305018 | B201: 0305018 | C201: Depósito de inmunoglobulina por inmunofluorescencia (IgG, IgA, IgM) c/u | D201: 0 | E201: =IFERROR(VLOOKUP($A201,Filtro!$A$5:$I$351,3,FALSE),0) -> 0 | F201: =IFERROR(VLOOKUP($A201,Filtro!$A$5:$I$351,4,FALSE),0) -> 0 | G201: =IFERROR(VLOOKUP($A201,Filtro!$A$5:$I$351,5,FALSE),0) -> 0 | H201: 201
A202: 80305019 | B202: 0305019 | C202: Factor reumatoídeo por técnica de látex u otras similares | D202: 1,254 | E202: =IFERROR(VLOOKUP($A202,Filtro!$A$5:$I$351,3,FALSE),0) -> 0 | F202: =IFERROR(VLOOKUP($A202,Filtro!$A$5:$I$351,4,FALSE),0) -> 1,254 | G202: =IFERROR(VLOOKUP($A202,Filtro!$A$5:$I$351,5,FALSE),0) -> 2,877 | H202: 202
A203: 80305020 | B203: 0305020 | C203: Factor reumatoídeo por técnica Scat, Waaler Rose, nefelométricas y/o turbidimétricas | D203: 19 | E203: =IFERROR(VLOOKUP($A203,Filtro!$A$5:$I$351,3,FALSE),0) -> 0 | F203: =IFERROR(VLOOKUP($A203,Filtro!$A$5:$I$351,4,FALSE),0) -> 19 | G203: =IFERROR(VLOOKUP($A203,Filtro!$A$5:$I$351,5,FALSE),0) -> 222 | H203: 203
... 446 more rows
